Cogmind - Beta 16 @@@ ROGUE MODE // 2025.11.28 @ 15:52:16 Player: C0-2MO Result: Establishing 0b11! Performance ------------- Evolutions (9) 4500 Regions Visited (36) 7200 Robots Destroyed (199) 995 Value Destroyed (12604) 12604 Prototype IDs (369) 7380 Alien Tech Used (9) 1800 Bonus (73676) 73676 TOTAL SCORE: 108155 Bonus ------- High Alert Combat Kills 2158 Follower Combat Kills 2618 Destroyed Unchained 3000 Network Hubs Disabled 200 Registered with UFD 300 Met Optimus in HQ 500 Met Zhirov 300 Met Warlord at Base 500 MAIN.C Attacked Warlord 500 Built Enhanced Grunts 300 A7 Reached Mainframe 300 Met R17 at Cetus 500 Met R17 at Research 2000 Destroyed Superfortress 15000 Met Optimus at Protoforge 1000 Recovered Sigix Corpse 2000 Destroyed MAIN.C Guards 500 Met MAIN.C 5000 Destroyed MAIN.C Shell 5000 Destroyed MAIN.C 10000 Met Architect 300 Destroyed A8 300 Destroyed A6 400 Destroyed A5 500 Destroyed A4 700 Destroyed A3 800 Destroyed A2 1000 Destroyed Architect 15000 Win 3000 Cogmind --------- Core Integrity 357/1600 Matter 260/300 Energy 1635/1640 System Corruption 3% Temperature Cool (10) Movement Hovering (36) Location 0b11 Command Parts ------- > --- POWER (3) -------- Hybrid Graviton Reactor Concept Zero-point Core Concept Zero-point Core > --- PROPULSION (8) --- Cooled Antigrav System Combat Antigrav System Combat Antigrav System Experimental Gyrokinetic Inverter Cooled Linear Gravjet Combat Linear Gravjet Gravjet Array > --- UTILITY (13) ----- Concept Phasing Heat Sink Concept Thermoelectric Network Concept Antigrav Storage Unit Experimental Active Sensor Suite Concept Hypertargeting System Experimental Core Analyzer Mini Quantum Capacitor Experimental Core Shielding Medium Regenerative Plating Graphene Brace Concept Energy Mantle > --- WEAPON (2) ------- Concept Plasma Driver > --- INVENTORY (25) --- Hybrid Graviton Reactor Zero-point Reactor Experimental Gyrokinetic Inverter Experimental Gyrokinetic Inverter Experimental Gyrokinetic Inverter Advanced Cryofiber Web Concept Phasing Heat Sink Experimental Energy Well (600) Advanced Gravity Neutralizer Quantum Shading Machine Experimental ECM Suite Concept Cloak Mesh Concept Cloak Mesh Concept RG22 Armor Concept RG22 Armor Concept Impact Drone Bay (4/6) High-powered Transdimensional Reconstructor Compact HERF Cannon A3's Sniper Rifle Sigix Corpse Peak State ------------ > --- POWER ------------ Hybrid Graviton Reactor Concept Zero-point Core Concept Zero-point Core > --- PROPULSION ------- Experimental Antigrav System Gravjet Array Gravjet Array Gravjet Array Concept Gyrokinetic System > --- UTILITY ---------- Concept Thermoelectric Network Concept Antigrav Storage Unit Experimental Active Sensor Suite Concept Hypertargeting System Experimental Core Analyzer Mini Quantum Capacitor Concept Cloak Mesh Concept Cloak Mesh Experimental Utility Shielding Concept RG22 Armor Concept RG22 Armor Concept Energy Mantle > --- WEAPON ----------- Concept Plasma Driver Experimental Jetlance > --- INVENTORY -------- Hybrid Graviton Reactor Concept Zero-point Core Concept Zero-point Core Gravjet Array Advanced Power Amplifier Advanced Cryofiber Web Concept Phasing Heat Sink Concept Phasing Heat Sink Concept Hypertargeting System Experimental ECM Suite Experimental Reaction Control System Concept Phase Shift Module Concept Phase Shift Module Graphene Brace Concept Energy Mantle Concept Antimissile System Concept Impact Drone Bay Concept Impact Drone Bay Transdimensional Reconstructor Compact HERF Cannon Concept Plasma Driver Concept Plasma Driver Advanced Remote Datajack [Rating: 314] Favorites ----------- Power Concept Zero-point Core Engine Light Deuterium Engine Power Core Concept Zero-point Core Reactor Hybrid Graviton Reactor Propulsion Cooled Nuclear Pulse Thruster Treads Light Treads Leg Experimental Biometal Leg Hover Unit Gravjet Array Flight Unit Cooled Nuclear Pulse Thruster Utility Advanced Sensor Array Device Advanced Sensor Array Storage Large Storage Unit Processor Advanced Signal Interpreter Hackware Advanced Hacking Suite Protection Concept RG22 Armor Weapon Power Sword Energy Gun Warp Gun Energy Cannon Concept Plasma Driver Ballistic Gun Minigun Ballistic Cannon Hypervelocity Gauss Cannon Launcher Mini Grenade Launcher Special Weapon Advanced Remote Datajack Impact Weapon Hammer Slashing Weapon Power Sword Piercing Weapon Experimental Jetlance Special Melee Weapon Advanced Datajack Build | -11 -10 -9 -9 -9 -8 -8 -8 -8 -8 -6 -6 -6 -6 -6 -6 -6 -5 -5 -5 -5 -5 -5 -4 -4 -4 -4 -4 -3 -3 -3 -2 -2 -2 -1 -1 -1 ------- Run | Yrd Mat Mat Min Exi Min Mat Sto Rec Scr Fac Was Fac Ext Cet Arc Hub Fac Was Fac Upp Upp War Pro Fac Upp Upp Zhi Pro Res Qua Res Tes Frg Acc Com Ac0 Slots Evolved 18 | . . 2 . . . 2 . . . 4 . . . . . . 2 . . . . . . 2 . . . . 2 . 2 . . 2 . . Power 1 | . . . . . . . . . . . . . . . . . 1 . . . . . . . . . . . . . . . . . . . Propulsion 6 | . . 1 . . . 2 . . . 1 . . . . . . 1 . . . . . . . . . . . 1 . . . . . . . Utility 11 | . . 1 . . . . . . . 3 . . . . . . . . . . . . . 2 . . . . 1 . 2 . . 2 . . Weapon . | . . . . . . . . . . . . . . . . . . . . . . . . . . . . . . . . . . . . . Parts Attached 280 | 5 6 4 11 . 5 9 6 2 3 15 1 25 3 1 4 1 10 2 14 . . 4 1 8 4 . 6 . 16 6 1 6 62 1 15 23 Power 27 | . . . 1 . . . 1 . 1 . . 3 . . 1 . 2 . 2 . . . . 2 . . 2 . 2 2 . 1 5 . 1 1 Engine 7 | . . . 1 . . . 1 . . . . 1 . . 1 . 2 . 1 . . . . . . . . . . . . . . . . . Core 14 | . . . . . . . . . 1 . . 2 . . . . . . 1 . . . . 1 . . 1 . 1 1 . 1 3 . 1 1 Reactor 6 | . . . . . . . . . . . . . . . . . . . . . . . . 1 . . 1 . 1 1 . . 2 . . . Propulsion 65 | 2 . 3 6 . 3 3 1 1 2 3 1 10 1 . . . 2 . 2 . . 1 . . 2 . . . 4 1 . 1 8 . . 8 Treads 2 | 2 . . . . . . . . . . . . . . . . . . . . . . . . . . . . . . . . . . . . Leg 1 | . . . . . . . . . . . . . . . . . . . . . . . . . . . . . . . . . 1 . . . Wheel . | . . . . . . . . . . . . . . . . . . . . . . . . . . . . . . . . . . . . . Hover 14 | . . . . . . . . . . . . . . . . . . . . . . . . . . . . . . 1 . . 5 . . 8 Flight 48 | . . 3 6 . 3 3 1 1 2 3 1 10 1 . . . 2 . 2 . . 1 . . 2 . . . 4 . . 1 2 . . . Utility 130 | 1 3 . 1 . . 2 1 . . 11 . 11 1 . 2 . 5 1 6 . . 1 . 4 2 . 3 . 8 3 1 2 37 1 12 11 Device 77 | 1 1 . . . . 1 1 . . 6 . 6 . . 1 . 3 1 2 . . 1 . 3 2 . 1 . 4 2 1 1 20 . 11 8 Storage 5 | . . . 1 . . . . . . . . . . . . . . . 2 . . . . 1 . . . . . . . . 1 . . . Processor 21 | . 1 . . . . . . . . 1 . 2 . . . . 1 . 1 . . . . . . . . . 3 . . 1 11 . . . Hackware 13 | . . . . . . 1 . . . 3 . 3 . . 1 . 1 . 1 . . . . . . . 1 . . . . . 2 . . . Protection 14 | . 1 . . . . . . . . 1 . . 1 . . . . . . . . . . . . . 1 . 1 1 . . 3 1 1 3 Artifact . | . . . . . . . . . . . . . . . . . . . . . . . . . . . . . . . . . . . . . Weapon 58 | 2 3 1 3 . 2 4 3 1 . 1 . 1 1 1 1 1 1 1 4 . . 2 1 2 . . 1 . 2 . . 2 12 . 2 3 Energy Gun 9 | 2 1 1 . . . . . . . . . . . . . . . 1 . . . 1 . . . . . . . . . 1 2 . . . Energy Cannon 6 | . . . . . . . . . . . . . . . . . . . . . . . . 1 . . . . . . . . 3 . 1 1 Ballistic Gun 10 | . . . 2 . 2 1 . . . . . . . 1 . . . . . . . . . . . . . . . . . . 3 . . 1 Ballistic Cannon 3 | . . . . . . . . . . . . . . . . . . . 1 . . . . . . . . . . . . . 1 . . 1 Launcher 5 | . . . . . . . 2 . . . . . . . . . . . 1 . . 1 . . . . . . . . . 1 . . . . Special Weapon 4 | . 1 . . . . . . . . . . . 1 . . 1 . . . . . . . . . . . . . . . . 1 . . . Impact Weapon 5 | . 1 . 1 . . . . . . . . . . . . . . . 1 . . . . . . . . . 1 . . . 1 . . . Slashing Weapon 5 | . . . . . . 3 1 . . . . . . . . . . . 1 . . . . . . . . . . . . . . . . . Piercing Weapon 1 | . . . . . . . . . . . . . . . . . . . . . . . . . . . . . . . . . 1 . . . Special Melee Weapon 10 | . . . . . . . . 1 . 1 . 1 . . 1 . 1 . . . . . 1 1 . . 1 . 1 . . . . . 1 . Unidentified Prototypes 60 | . . . . . . . 1 . . 1 . 4 . 1 . . 1 1 4 1 . 3 . 1 . . 4 . 6 7 . 5 17 . . 3 Parts Lost 74 | . 4 6 2 . 1 3 2 1 . 9 2 4 . . . 5 . . 1 . . 2 . . 3 . . . 1 1 . 1 9 . . 17 Power 9 | . . . 1 . . . 1 . . 1 . . . . . 1 . . . . . . . . . . . . 1 . . . 3 . . 1 Propulsion 32 | . 2 2 1 . 1 3 1 1 . 6 2 2 . . . 2 . . . . . . . . 1 . . . . . . . 3 . . 5 Utility 22 | . 1 2 . . . . . . . 1 . 1 . . . 1 . . 1 . . 1 . . 2 . . . . 1 . . 3 . . 8 Weapon 11 | . 1 2 . . . . . . . 1 . 1 . . . 1 . . . . . 1 . . . . . . . . . 1 . . . 3 Highest Loss Streak 7 | . 4 4 2 . 1 1 1 1 . 5 7 2 . . . 5 . . 1 . . 1 . . 1 . . . 1 1 . 1 4 . . 4 To Critical Strikes 3 | . . . . . . . . . . . 1 . . . . . . . . . . . . . . . . . . . . . . . . 2 Average Backups 14 | 1 4 4 4 7 6 9 8 7 7 8 10 9 10 10 9 10 9 10 11 14 14 13 14 13 13 12 13 13 13 13 12 14 18 22 23 20 Power 1 | 1 1 1 . . . 1 . . . . . . 1 1 1 1 . . . 1 1 . 1 . . . . 1 . 1 1 1 1 3 3 2 Propulsion 1 | . . . 1 3 2 2 1 . . . . 1 2 2 2 2 . . . 2 2 1 2 1 1 1 1 1 1 2 2 2 2 1 1 1 Utility 7 | . . . . . . . 2 2 1 3 6 4 5 5 5 6 8 8 8 8 8 8 8 7 6 7 6 6 6 6 4 5 8 14 14 11 Weapon 2 | . 1 1 1 2 1 3 3 3 2 1 1 . . . . . . 1 2 3 3 3 3 3 3 3 3 3 3 3 3 3 4 2 3 2 Tool/Special . | . . . . . . . . . . . . . . . . . . . . . . . . . . . . . . . . . . . . . Unused Backups 57 | . 1 . 1 . . 3 . . 10 9 . . . . . . 2 . 3 . . . . 3 . . . . 1 1 . 1 13 . 1 8 Power 8 | . 1 . 1 . . . . . 1 1 . . . . . . . . . . . . . 1 . . . . 1 . . . . . . 2 Propulsion 11 | . . . . . . . . . 2 2 . . . . . . . . . . . . . . . . . . . . . . 4 . . 3 Utility 24 | . . . . . . 1 . . 5 5 . . . . . . 2 . 3 . . . . 1 . . . . . . . . 4 . 1 2 Weapon 10 | . . . . . . 1 . . 2 1 . . . . . . . . . . . . . . . . . . . . . 1 5 . . . Tool/Special 4 | . . . . . . 1 . . . . . . . . . . . . . . . . . 1 . . . . . 1 . . . . . 1 Average Slot Usage (%) 89 | . 50 50 74 77 87 98 99 90 99 94 68 88 100 100 100 98 97 100 99 94 94 92 91 98 94 95 95 100 90 88 88 90 87 83 83 85 Engine 1 | . . 3 9 11 11 9 8 9 2 . . 3 . . 3 5 9 11 5 . . 1 . . . . . . . . . . . . . . Core 6 | . . . . . . . . . 6 5 . 1 6 6 2 . . . 5 11 11 11 11 13 11 15 15 15 4 4 4 4 11 7 7 6 Reactor 1 | . . . . . . . . . . . . . . . . . . . . . . . . . . . . . 7 9 8 7 . 3 3 3 Hover 4 | . . 6 3 . . . . . . . . . . . . . . . . . . . . . . . . . . . . . 3 19 19 22 Flight 24 | . . 3 28 33 33 44 45 36 44 36 22 35 40 40 40 39 40 41 41 38 38 38 38 34 35 35 35 35 28 27 25 25 20 . . . Device 17 | . 9 3 . . . 8 9 9 9 7 13 13 8 13 13 12 10 11 9 11 11 8 5 18 19 20 20 20 18 18 22 25 22 25 30 28 Storage 4 | . . . . 11 11 9 9 9 9 6 6 6 6 6 6 6 5 5 5 5 5 5 5 5 5 5 5 5 4 4 4 4 4 3 3 3 Processor 5 | . 12 11 11 11 11 1 . . . 3 6 2 6 6 6 6 5 5 5 5 5 5 5 5 5 5 5 5 7 9 8 8 9 7 3 3 Hackware 6 | . . . . . . 7 9 9 9 15 13 12 13 13 12 13 11 11 11 11 11 11 11 10 7 5 6 10 9 4 4 4 3 . . . Protection 2 | . 4 5 . . . . . . . 4 . . 3 . . . . . 1 . . 1 5 . 2 5 1 . . 2 4 4 3 7 6 7 Ballistic Gun 1 | . . . 10 . 20 10 8 9 9 1 . . . . . . . . . . . . . . . . . . . . . . . . . . Slashing Weapon 3 | . . . . . . 7 8 8 9 5 . 4 6 6 6 6 5 5 4 5 5 5 5 4 2 5 5 5 3 3 4 4 3 . . . Special Melee Weapon 2 | . . . . . . . . . . 4 . 5 5 5 6 5 4 3 5 5 5 3 2 4 3 . 1 5 4 4 3 3 . . . . Peak Build Rating 314 | 5 6 7 10 8 9 30 35 26 32 50 41 69 68 73 74 74 84 90 103 103 103 112 102 128 126 126 129 129 160 167 170 179 288 306 314 312 Average Rating 146 | 3 3 4 6 8 8 26 31 25 29 44 33 53 67 68 73 73 80 83 87 102 103 100 99 120 117 120 123 129 150 156 166 172 217 305 306 285 On Entrance 91 | . 5 3 7 8 8 9 26 26 25 31 33 24 68 68 68 74 52 83 83 103 103 103 95 102 123 126 120 129 129 160 157 170 170 285 306 312 Avg Prop Armor Cover (%) 4 | 31 28 7 7 . . 3 . . 3 3 10 5 9 8 10 7 9 1 2 1 1 1 2 5 . . . . . . . . 7 . . . Naked Turns . | . . . . . . . . . . . . . . . . . . . . . . . . . . . . . . . . . . . . . Heaviest Build 126 | 3 3 4 15 15 15 20 25 20 22 25 13 24 24 23 25 25 29 30 42 33 33 41 35 45 47 47 46 44 64 64 66 64 96 104 121 126 Greatest Support 144 | 3 3 12 15 15 15 28 28 22 27 27 15 39 33 28 28 28 35 40 43 50 50 51 44 45 53 53 47 47 66 64 69 67 144 124 124 133 Greatest Overweight (x) 8 | . . . . . . . . . . 1 . 4 . . 8 . 1 . . . . . . 1 . . . . . . 1 . 1 . . 1 Average Overweight (x) . | . . . . . . . . . . . . . . . 1 . . . . . . . . . . . . . . . . . . . . . Largest Inventory Capacity 25 | 5 5 5 10 10 10 10 10 10 10 10 10 10 10 10 10 10 10 10 15 15 15 15 15 15 15 15 15 15 15 15 15 15 25 25 25 25 Average Capacity 15 | 5 5 5 5 10 10 10 10 10 10 10 10 10 10 10 10 10 10 10 12 15 15 15 15 15 15 15 15 15 15 15 15 15 20 25 25 25 Most Carried 25 | 3 5 5 7 7 10 10 9 8 10 10 10 10 10 10 10 10 10 10 15 15 15 15 15 15 15 14 15 14 15 15 15 15 25 25 25 25 Average Carried 14 | 2 4 4 5 7 6 9 8 7 8 8 10 9 10 10 9 9 8 9 12 15 15 14 15 14 14 13 14 14 14 14 13 14 18 23 24 20 Final Capacity 25 | 5 5 5 10 10 10 10 10 10 10 10 10 10 10 10 10 10 10 10 15 15 15 15 15 15 15 15 15 15 15 15 15 15 25 25 25 25 Final Carried 25 | 3 5 5 7 7 10 10 8 7 9 10 10 10 10 10 10 9 10 10 15 15 15 15 15 15 13 14 14 14 15 15 15 15 25 25 24 20 Class Distribution -------------------- 13% | Scavenger-Scout 12% | Scavenger-Ninja 9% | Hacker-Sprinter 8% | Hacker-Scout 7% | Sprinter 6% | Scavenger-Sprinter 6% | Mutant 5% | Hacker-Ninja 5% | Trapper-Scout 4% | Commander-Sprinter 3% | Scientist-Scout Dominant Class ---------------- Mutant | -10/Materials Mutant | -9/Materials Scavenger-Mutant | -9/Mines Mutant | -9/Exiles Scavenger-Mutant | -8/Mines Sprinter | -8/Materials Sprinter | -8/Storage Commander-Sprinter | -8/Recycling Commander-Sprinter | -8/Scraptown Hacker-Sprinter | -6/Factory Hacker-Sprinter | -6/Waste Scientist-Sprinter | -6/Factory Hacker-Sprinter | -6/Extension Commander-Scout | -6/Cetus Hacker-Assassin | -6/Archives Hacker-Scout | -6/Hub_04(d) Hacker-Scout | -5/Factory Hacker-Scout | -5/Waste Scientist-Scout | -5/Factory Hacker-Scout | -5/Upper Caves Hacker-Scout | -5/Upper Caves Hacker-Sprinter | -5/Warlord Hacker-Sprinter | -4/Proximity Caves Trapper-Ninja | -4/Factory Sprinter | -4/Upper Caves Sprinter | -4/Upper Caves Sprinter | -4/Zhirov Hacker-Sprinter | -3/Proximity Caves Hacker-Ninja | -3/Research Ninja | -3/Quarantine Infiltrator-Ninja | -2/Research Scientist-Ninja | -2/Testing Scavenger-Ninja | -2/Protoforge Scavenger-Ninja | -1/Access Scavenger-Scout | -1/Command Scavenger-Scout | -1/Access_0 Resources | -11 -10 -9 -9 -9 -8 -8 -8 -8 -8 -6 -6 -6 -6 -6 -6 -6 -5 -5 -5 -5 -5 -5 -4 -4 -4 -4 -4 -3 -3 -3 -2 -2 -2 -1 -1 -1 ----------- Run | Yrd Mat Mat Min Exi Min Mat Sto Rec Scr Fac Was Fac Ext Cet Arc Hub Fac Was Fac Upp Upp War Pro Fac Upp Upp Zhi Pro Res Qua Res Tes Frg Acc Com Ac0 Matter Collected 9670 | 250 65 12 145 . 76 136 84 25 40 227 . 154 182 20 40 . 100 145 474 40 21 . 89 690 644 86 105 . 317 282 19 206 3852 30 460 654 Remotely 484 | . . . . . . . . . . . . . . . . . . . . . . . . . . . . . . . . . 484 . . . Salvage Created 14653 | 110 498 100 57 . 66 32 13 172 . 208 . 174 425 . 173 . 123 277 486 . . . 32 643 190 71 204 . 429 683 . 275 3500 370 2043 3299 Parts 606 | 3 25 9 6 . 7 2 4 4 . 12 . 17 17 . 14 . 4 1 13 . . . 1 19 2 1 3 . 15 26 . 14 155 11 60 161 Haulers Intercepted 12 | . 2 . . . . . . . . 1 . . . . . . 1 . 2 . . . . 2 . . . . 3 . . . . 1 . . Recyclers Shooed 1 | . . . . . . . . . . . . . . . . . . . . . . . . . . . . . . 1 . . . . . . Parts Field Recycled . | . . . . . . . . . . . . . . . . . . . . . . . . . . . . . . . . . . . . . Retrieved Matter . | . . . . . . . . . . . . . . . . . . . . . . . . . . . . . . . . . . . . . Parts Self-Destructed 6 | . . . . . . . . . . . . . . . . . . . . . . . . . 2 1 3 . . . . . . . . . Prevented 2 | . . . . . . . . . . . . . . . . . . . . . . . . . 2 . . . . . . . . . . . Parts Restored 15 | . . . . . . . . . . . . . . . . . . . . . . . . . . . . . . . . . 15 . . . Faulty 15 | . . . . . . . . . . . . . . . . . . . . . . . . . . . . . . . . . 15 . . . Kills | -11 -10 -9 -9 -9 -8 -8 -8 -8 -8 -6 -6 -6 -6 -6 -6 -6 -5 -5 -5 -5 -5 -5 -4 -4 -4 -4 -4 -3 -3 -3 -2 -2 -2 -1 -1 -1 ------- Run | Yrd Mat Mat Min Exi Min Mat Sto Rec Scr Fac Was Fac Ext Cet Arc Hub Fac Was Fac Upp Upp War Pro Fac Upp Upp Zhi Pro Res Qua Res Tes Frg Acc Com Ac0 Combat Hostiles Destroyed 137 | . 9 6 4 . 4 . 4 2 . 3 . 4 4 . . . . 1 1 . . . . . 3 . . . . 1 . . 45 . 9 37 Melee 26 | . . . . . . . . 2 . 2 . 4 4 . . . . . 1 . . . . . . . . . . 1 . . 9 . 1 2 Guns 45 | . 9 6 4 . 4 . . . . . . . . . . . . 1 . . . . . . . . . . . . . . 21 . . . Cannons 39 | . . . . . . . . . . . . . . . . . . . . . . . . . 3 . . . . . . . 14 . 5 17 AOE 5 | . . . . . . . 4 . . 1 . . . . . . . . . . . . . . . . . . . . . . . . . . Classes Destroyed 23 | 2 4 1 . . . . . 1 . 3 . . 1 . . . . 1 . . . . 1 . . . . . . . . . 9 . . . Worker 1 | . 1 . . . . . . . . . . . . . . . . . . . . . . . . . . . . . . . . . . . Builder 3 | . . . . . . . . . . 1 . . . . . . . . . . . . . 1 . . . . 1 . . . . . . . Tunneler 2 | 1 . . . . . . . . . . . . . . . . . . . . . . . 1 . . . . . . . . . . . . Hauler 12 | . 2 . . . . . . . . 1 . . . . . . 1 . 2 . . . . 2 . . . . 3 . . . . 1 . . Recycler 12 | 1 . . . . . . . 1 . . . . 1 . . . . . 2 . . . . 3 . . . . . 2 . . . 1 1 . Minesweeper 2 | . . . . . . . . . . . . . . . . . . . . . . . 1 . 1 . . . . . . . . . . . Operator 19 | . . . . . . . . . . 1 . 2 1 . 5 . . . . . . . . 1 . . . . 2 2 . 1 3 1 . . Drone 8 | . . . . . . . . . . . . . . . . . . . . . . . . . . . . . . . . . 8 . . . Watcher 9 | . 1 . . . . 1 . . . . . . . . . . . . . . . . . . . . . . . . . 1 1 3 2 . Swarmer 24 | . . 6 4 . 4 . 4 . . 2 . 4 . . . . . . . . . . . . . . . . . . . . . . . . Saboteur 2 | . . . . . . . . . . . . . . . . . . . . . . . . . . . . . . . . . 2 . . . Grunt 23 | . 9 . . . . . . 1 . . . . 2 . . . . . . . . . . . 1 . . . . . . . 10 . . . Protector 3 | . . . . . . . . 1 . . . . . . . . . . . . . . . . . . . . . . . . 2 . . . Researcher 2 | . . . . . . . . . . . . . . . . . . . . . . . . . . . . . . . . . 2 . . . Sentry 10 | . . . . . . . . . . . . . 2 . . . . . . . . . . . . . . . . . . . 8 . . . Specialist 1 | . . . . . . . . . . . . . . . . . . . . . . . . . . . . . . . . . 1 . . . Hunter 4 | . . . . . . . . . . . . . . . . . . . . . . . . . . . . . . . . . 4 . . . Programmer 5 | . . . . . . . . . . 1 . . . . . . . . . . . . . . 1 . . . . . . . . . 3 . Compactor 1 | . . . . . . . . . . . . . . . . . . 1 . . . . . . . . . . . . . . . . . . M Guard 2 | . . . . . . . . . . . . . . . . . . . . . . . . . . . . . . . . . . . 2 . Enhanced Grunt 23 | . . . . . . . . . . . . . . . . . . . . . . . . . . . . . . . . . . . . 23 Enhanced Hunter 8 | . . . . . . . . . . . . . . . . . . . . . . . . . . . . . . . . . . . . 8 Hotshot 2 | . . . . . . . . . . . . . . . . . . . . . . . . . . . . . . . . . 2 . . . Decapitator 2 | . . . . . . . . . . . . . . . . . . . . . . . . . . . . . . . . . 2 . . . Immortal 1 | . . . . . . . . . . . . . . . . . . . . . . . . . . . . . . . . . 1 . . . Combat Programmer 2 | . . . . . . . . . . . . . . . . . . . . . . . . . . . . . . . . . . . 2 . Alpha 7 2 | . . . . . . . . . . . . . . . . . . . . . . . . . . . . . . . . . 2 . . . V-Series 3 | . . . . . . . . . . . . . . . . . . . . . . . . . . . . . . . . . 3 . . . Best Kill Streak 5 | 2 4 3 4 . 4 1 4 2 . 2 . 4 2 . 4 . 1 1 1 . . . 1 2 2 . . . 1 2 . 1 5 2 4 3 Combat Bots Only 5 | . 3 3 4 . 4 . 4 2 . 2 . 4 1 . . . . 1 1 . . . . . 1 . . . . 1 . . 5 . 4 3 Max Kills in Single Turn 4 | 1 1 1 1 . 1 1 4 1 . 1 . 1 1 . 1 . 1 1 1 . . . 1 1 1 . . . 1 1 . 1 1 2 1 2 Gunslinging . | . . . . . . . . . . . . . . . . . . . . . . . . . . . . . . . . . . . . . Exploded 4 | . . . . . . . 4 . . 1 . . . . . . . . . . . . . . . . . . . . . . . . . . Melee 1 | . . . . . . . . 1 . 1 . 1 1 . . . . . 1 . . . . . . . . . . 1 . . 1 . 1 1 Uniques/NPCs Destroyed 12 | . . . . . . . . . . . . . . . . . . . 1 . . . . . 1 . . . . 1 . . . . 2 7 CL-0N3 (-5/Factory) DW-4LL (-4/Upper Caves) 6S-H0T (-3/Quarantine) MAIN.C Shell (-1/Command) MAIN.C (-1/Command) A8 (-1/Access_0) A6 (-1/Access_0) A5 (-1/Access_0) A4 (-1/Access_0) A2 (-1/Access_0) Architect (-1/Access_0) A3 (-1/Access_0) Combat | -11 -10 -9 -9 -9 -8 -8 -8 -8 -8 -6 -6 -6 -6 -6 -6 -6 -5 -5 -5 -5 -5 -5 -4 -4 -4 -4 -4 -3 -3 -3 -2 -2 -2 -1 -1 -1 -------- Run | Yrd Mat Mat Min Exi Min Mat Sto Rec Scr Fac Was Fac Ext Cet Arc Hub Fac Was Fac Upp Upp War Pro Fac Upp Upp Zhi Pro Res Qua Res Tes Frg Acc Com Ac0 Hostile Shots Fired 1554 | . 49 76 28 . 21 26 15 3 . 126 1 41 26 . . 43 4 . 12 . . 5 12 9 26 8 . 2 6 10 31 2 122 . 79 771 Missed 856 | . 13 31 14 . 10 10 8 1 . 63 . 25 8 . . 19 . . 7 . . 2 8 7 16 2 . . 4 6 15 . 66 . 28 493 Intercepted 11 | . . . . . . . . . . . . . . . . . . . . . . . . . . . . . . . . . . . 11 . Hits 698 | . 36 45 14 . 11 16 7 2 . 63 1 16 18 . . 24 4 . 5 . . 3 4 2 10 6 . 2 2 4 16 2 56 . 51 278 Melee 13 | . . 7 . . . . . . . 2 1 . . . . . . . . . . . . . . . . . . . . . . . . 3 Projectile 685 | . 36 38 14 . 11 16 7 2 . 61 . 16 18 . . 24 4 . 5 . . 3 4 2 10 6 . 2 2 4 16 2 56 . 51 275 AOE 1 | . . . . . . . . . . . . . . . . . . . . . . . . . . . . . . . . . . . 1 . Critical Strikes 44 | . . 2 . . . . . . . 1 1 . 1 . . . . . . . . . . . 1 . . 1 . . 1 1 3 . 2 30 Actively Blocked 31 | . . 1 . . . . . . . . . . 1 . . . . . . . . . . . . . . . . . 1 1 3 . . 24 Part Disruptions 13 | . . . . . . . . . . . . . . . . . . . . . . . . . . . . . . . . . . . 8 5 Actively Blocked 4 | . . . . . . . . . . . . . . . . . . . . . . . . . . . . . . . . . . . 4 . Damage Taken 13664 | . 664 627 116 . 103 242 99 31 . 835 43 356 320 44 . 354 76 26 123 . . 63 64 43 231 137 . 38 23 85 365 93 1743 . 782 5938 Core 2756 | . 218 291 44 . 31 74 28 . . 225 31 95 71 . . 22 . . 34 . . . . . 69 16 . . . . 37 . 214 . 91 1165 Absorbed by Shields 3760 | . . . . . . . . . . . . . 68 14 . . . . . . . . . . . . . . . . . . . . 747 2931 Redirected to Shielding 819 | . 15 36 . . . . . . . . . . 99 . . . . . . . . 25 29 . 11 25 . . . . 98 34 . . 139 308 Ignored by Resistances 328 | . . . . . . . . . . . . . . . . . . . . . . . . . . . . . . . . . 25 . 215 88 Regen/Repaired (Parts) 1855 | . . . . . . . . . . 110 . 7 . . . . 239 44 1 . . 3 . . . . . . 90 . . 75 . . 153 1133 Core Remaining (%) 62 | 100 12 . . . 8 . . . 81 . . . . . . 47 . . . . . . 96 . . . . 92 . 91 . . 73 . . 22 Volleys Fired 1002 | 6 40 14 7 . 8 3 1 . . 1 . . 1 . . . . 8 15 . . 1 . 3 76 . . . 6 20 1 . 449 24 61 257 Largest 2 | 2 2 2 2 . 2 2 2 . . 1 . . 1 . . . . 1 1 . . 1 . 1 1 . . . 1 1 1 . 1 1 1 1 Hottest 260 | 80 100 80 60 . 40 40 55 . . 30 . . . . . . . 81 51 . . 260 . 98 98 . . . 98 98 50 . 140 140 140 140 Shots Fired 1082 | 12 79 28 14 . 16 6 2 . . 1 . . 1 . . . . 8 15 . . 1 . 3 77 . . . 6 20 1 . 449 24 60 259 Gun 494 | 12 78 28 14 . 16 6 1 . . . . . . . . . . 8 . . . . . . . . . . . . . . 328 . . 3 Cannon 574 | . . . . . . . . . . . . . . . . . . . 15 . . . . 3 77 . . . 6 20 . . 113 24 60 256 Launcher 4 | . . . . . . . 1 . . 1 . . . . . . . . . . . 1 . . . . . . . . 1 . . . . . Special 10 | . 1 . . . . . . . . . . . 1 . . . . . . . . . . . . . . . . . . . 8 . . . Kinetic 218 | . . . 2 . 16 6 1 . . . . . . . . . . . 15 . . . . . 60 . . . . . . . 115 . . 3 Thermal 833 | 12 79 28 12 . . . . . . . . . . . . . . 8 . . . 1 . 3 17 . . . 6 20 . . 326 24 46 251 Explosive 2 | . . . . . . . 1 . . 1 . . . . . . . . . . . . . . . . . . . . . . . . . . Electromagnetic 20 | . . . . . . . . . . . . . . . . . . . . . . . . . . . . . . . 1 . . . 14 5 Robot Hit Streak 42 | 7 17 7 5 . 2 1 1 . . 2 . . 3 . . . . 3 8 . . . . . 11 . . . . . . . 42 3 29 14 Robot Miss Streak 4 | 3 3 3 2 . 2 2 2 . . . . . . . . . . 1 3 . . . . . 4 . . . . . . . 2 2 1 3 Penetration Max 1 | . . . . . . . . . . . . . . . . . . . . . . . . . . . . . . . . . 1 1 1 1 Secondary Targets 2 | . . 2 . . . . . . . . . . . . . . . . . . . . . . . . . . . . . . . . . . Max Gunslinging Chain 1 | . . 1 . . . . . . . . . . . . . . . . . . . . . . . . . . . . . . . . . . Capacitor 314 | . . . . . . . . . . . . . . . . . . . . . . . . . . . . . . . . . 5 . 55 254 Shots Hit Robots 902 | 7 61 16 9 . 6 7 1 29 . 21 . 13 46 . 11 2 8 5 47 . . 6 3 18 57 1 4 . 33 37 4 16 180 8 69 177 Core Hits 384 | 3 24 8 4 . 5 1 3 2 . 7 . 6 7 . 4 . 2 2 28 . . . 1 7 12 1 2 . 8 12 1 5 114 4 27 84 Critical Kills 40 | . . . . . . . . . . . . . . . . . . . . . . . . . 2 . . . . . . . 19 2 . 17 Critical Parts Destroyed 33 | . . . . . . . . . . . . . . . . . . . 1 . . . . . 7 . . . . . . . 25 . . . Critical Strikes 117 | . . . . . . 1 . . . 2 . 1 4 . . . . . 1 . . . . . 15 . . . 4 2 . . 54 3 6 24 Meltdown 21 | . . . . . . . . . . . . . . . . . . . . . . . . . . . . . . . . . 2 2 . 17 Destroy 65 | . . . . . . . . . . . . . . . . . . . . . . . . . 15 . . . . . . . 50 . . . Smash 1 | . . . . . . . . . . . . . . . . . . . 1 . . . . . . . . . . . . . . . . . Sever 14 | . . . . . . 1 . . . 2 . 1 4 . . . . . . . . . . . . . . . 4 2 . . . . . . Impale 16 | . . . . . . . . . . . . . . . . . . . . . . . . . . . . . . . . . 2 1 6 7 Melee Attacks 806 | . 7 2 3 . . 30 14 31 . 50 . 46 57 . 16 9 29 . 73 6 9 6 6 54 12 9 4 3 68 57 31 26 73 13 35 27 Impact 32 | . 7 2 3 . . . . . . . . . . . . . . . 20 . . . . . . . . . . . . . . . . . Slashing 544 | . . . . . . 30 14 6 . 43 . 37 34 . 12 7 22 . 44 6 9 . 5 42 12 9 3 3 61 46 23 18 58 . . . Piercing 89 | . . . . . . . . . . . . . . . . . . . . . . . . . . . . . . . . . 15 13 34 27 Sneak Attacks 147 | . 1 . . . . 2 . 29 . 3 . 3 26 . 9 . 5 . 8 . . 6 1 12 1 . . . 8 11 . 6 14 1 1 . Combat Hostiles 2 | . . . . . . . . . . . . . 2 . . . . . . . . . . . . . . . . . . . . . . . Follow-up Attacks . | . . . . . . . . . . . . . . . . . . . . . . . . . . . . . . . . . . . . . Damage Inflicted 43944 | 72 824 162 75 . 68 287 210 319 . 818 . 518 1192 . 550 . 216 117 985 . . . 191 891 1283 84 272 . 1620 2059 62 645 11152 926 5280 13066 Guns 7981 | 72 655 162 75 . 68 15 . . . . . . . . . . . 117 . . . . . . . . . . . . . . 6817 . . . Cannons 20272 | . . . . . . . . . . . . . . . . . . . 37 . . . . . 1048 . . . . . . . 1654 711 4187 12635 Explosions 504 | . 84 . . . . . 210 . . 148 . . . . . . . . . . . . . . . . . . . . 62 . . . . . Melee 15187 | . 85 . . . . 272 . 319 . 670 . 518 1192 . 550 . 216 . 948 . . . 191 891 235 84 272 . 1620 2059 . 645 2681 215 1093 431 Ramming . | . . . . . . . . . . . . . . . . . . . . . . . . . . . . . . . . . . . . . Kinetic 2934 | . . . 13 . 68 15 . . . . . . . . . . . . 37 . . . . . 655 . . . . . . . 2146 . . . Thermal 25092 | 72 739 162 62 . . . . . . . . . . . . . . 117 . . . . . . 393 . . . . . . . 6325 711 3986 12525 Explosive 358 | . . . . . . . 210 . . 148 . . . . . . . . . . . . . . . . . . . . . . . . . . Electromagnetic 373 | . . . . . . . . . . . . . . . . . . . . . . . . . . . . . . . 62 . . . 201 110 Impact 232 | . 85 . . . . . . . . . . . . . . . . . 147 . . . . . . . . . . . . . . . . . Slashing 12917 | . . . . . . 272 . 319 . 670 . 518 1192 . 550 . 216 . 801 . . . 191 891 235 84 272 . 1620 2059 . 645 2382 . . . Piercing 2038 | . . . . . . . . . . . . . . . . . . . . . . . . . . . . . . . . . 299 215 1093 431 Highest Corruption 11 | . . . . . . . . . . 1 11 11 1 1 1 . . . . . . . . . 1 . . . . 1 . . . . 9 3 Average Corruption 2 | . . . . . . . . . . 1 5 6 1 1 1 . . . . . . . . . 1 . . . . 1 . . . . 5 2 Corruption Purged 25 | . . . . . . . . . . . . 11 . . 1 . . . . . . . . . 3 . . . . 1 . . . . 9 . Corruption Blocked 11 | . . . . . . . . . . . . . . . . . . . . . . . . . . . . . . . . . 11 . . . Effects 70 | . . . . . . . . . . . 2 20 4 1 . . . . . . . . . . 2 . . . . 1 . . . . 9 31 Message Errors 13 | . . . . . . . . . . . . 4 . . . . . . . . . . . . . . . . . . . . . . 1 8 Matter Fused 18 | . . . . . . . . . . . . 6 1 . . . . . . . . . . . . . . . . 1 . . . . 1 9 Heat Flow Errors 12 | . . . . . . . . . . . . 3 . 1 . . . . . . . . . . . . . . . . . . . . 3 5 Energy Discharges 8 | . . . . . . . . . . . 1 1 . . . . . . . . . . . . 1 . . . . . . . . . . 5 Parts Rejected 1 | . . . . . . . . . . . . . 1 . . . . . . . . . . . . . . . . . . . . . . . Parts Fused 1 | . . . . . . . . . . . . . . . . . . . . . . . . . . . . . . . . . . . 1 . Data Loss (minor) 10 | . . . . . . . . . . . . 5 2 . . . . . . . . . . . . . . . . . . . . . 1 2 Data Loss (major) 2 | . . . . . . . . . . . . 1 . . . . . . . . . . . . . . . . . . . . . . 1 . Misfires 3 | . . . . . . . . . . . . . . . . . . . . . . . . . 1 . . . . . . . . . . 2 Misdirections 1 | . . . . . . . . . . . 1 . . . . . . . . . . . . . . . . . . . . . . . . . Weapon Failures 1 | . . . . . . . . . . . . . . . . . . . . . . . . . . . . . . . . . . . 1 . Overload Shots . | . . . . . . . . . . . . . . . . . . . . . . . . . . . . . . . . . . . . . Overflow Damage 3406 | . 111 . . . . 13 13 118 . 98 . 66 225 . 94 . 42 . 38 . . . 65 153 94 . 61 . 106 252 . 16 781 168 557 335 Projectiles 814 | . . . . . . . . . . . . . . . . . . . . . . . . . . . . . . . . . . 168 311 335 Explosions 81 | . 68 . . . . . 13 . . . . . . . . . . . . . . . . . . . . . . . . . . . . . Melee 2511 | . 43 . . . . 13 . 118 . 98 . 66 225 . 94 . 42 . 38 . . . 65 153 94 . 61 . 106 252 . 16 781 . 246 . Knockbacks 7 | . 1 . . . . . . . . . . . . . . . . . 5 . . . . . . . . . . . . . 1 . . . Impact 1 | . 1 . . . . . . . . . . . . . . . . . . . . . . . . . . . . . . . . . . . Kinetic 6 | . . . . . . . . . . . . . . . . . . . 5 . . . . . . . . . . . . . 1 . . . Secondary . | . . . . . . . . . . . . . . . . . . . . . . . . . . . . . . . . . . . . . Self-Inflicted Damage 227 | . 206 . . . . . . . . 21 . . . . . . . . . . . . . . . . . . . . . . . . . . Shots 3 | . 2 . . . . . . . . 1 . . . . . . . . . . . . . . . . . . . . . . . . . . Rammed . | . . . . . . . . . . . . . . . . . . . . . . . . . . . . . . . . . . . . . Targets Rammed . | . . . . . . . . . . . . . . . . . . . . . . . . . . . . . . . . . . . . . Kicked . | . . . . . . . . . . . . . . . . . . . . . . . . . . . . . . . . . . . . . Crushed . | . . . . . . . . . . . . . . . . . . . . . . . . . . . . . . . . . . . . . Highest Temperature 356 | 34 183 6 6 . 1 14 23 . 107 17 . 216 36 117 . . 27 322 290 44 15 284 109 54 20 41 . 16 278 112 91 25 356 245 223 203 Average Temperature 56 | 13 59 4 4 . 1 4 6 . 24 7 . 93 15 47 . . 11 100 47 10 5 89 16 14 7 29 . 16 47 45 39 10 145 80 115 105 Received Heat Transfer 1284 | . 243 108 . . 18 99 36 18 . 78 . 18 88 . . 33 36 . 27 . . 12 . 9 . 9 . 39 . 21 39 9 216 . 56 72 Thermoelectric Energy+ 2640 | . . . . . . . . . . . . . . . . . . . . . . . . . . . . . . . . . . . 1010 1630 Effects 4 | . . . . . . . . . . . . . . . . . . . . . . . . . . . . . . . . . . 1 . 3 Energy Bleed 2 | . . . . . . . . . . . . . . . . . . . . . . . . . . . . . . . . . . 1 . 1 Interference 2 | . . . . . . . . . . . . . . . . . . . . . . . . . . . . . . . . . . . . 2 Siege Activations . | . . . . . . . . . . . . . . . . . . . . . . . . . . . . . . . . . . . . . Martial Activations . | . . . . . . . . . . . . . . . . . . . . . . . . . . . . . . . . . . . . . Shielding Activations . | . . . . . . . . . . . . . . . . . . . . . . . . . . . . . . . . . . . . . Robots Disrupted . | . . . . . . . . . . . . . . . . . . . . . . . . . . . . . . . . . . . . . Combat Hostiles . | . . . . . . . . . . . . . . . . . . . . . . . . . . . . . . . . . . . . . Robots Corrupted 4 | . 1 . . . . . . . . . . . . . . . . . . . . . . . . . . . . . . . . . 2 1 Combat Hostiles 3 | . . . . . . . . . . . . . . . . . . . . . . . . . . . . . . . . . . . 2 1 Parts Fried 10 | . 3 . . . . . . . . . . . . . . . . . . . . . . . . . . . . . . . . . 4 3 Impact Corruptions 3 | . 2 . . . . . . . . . . . . . . . . . 1 . . . . . . . . . . . . . . . . . Robots Melted 22 | . . . . . . . . . . . . . . . . . . . . . . . . . . . . . . . . . 2 2 1 17 Combat Hostiles 20 | . . . . . . . . . . . . . . . . . . . . . . . . . . . . . . . . . 2 . 1 17 Parts Melted 59 | 1 2 . . . . . . . . . . . 3 . . . . . . . . . . . . . . . . . . . 7 2 2 42 Heat Transferred 20529 | 175 1550 472 259 . . . . . . . . . . . . . . 185 . . . . . . 144 . . . . . . . 8392 400 1201 7751 Parts Sabotaged . | . . . . . . . . . . . . . . . . . . . . . . . . . . . . . . . . . . . . . Parts Stolen . | . . . . . . . . . . . . . . . . . . . . . . . . . . . . . . . . . . . . . Parts Stripped . | . . . . . . . . . . . . . . . . . . . . . . . . . . . . . . . . . . . . . Power Chain Reactions . | . . . . . . . . . . . . . . . . . . . . . . . . . . . . . . . . . . . . . Alert | -11 -10 -9 -9 -9 -8 -8 -8 -8 -8 -6 -6 -6 -6 -6 -6 -6 -5 -5 -5 -5 -5 -5 -4 -4 -4 -4 -4 -3 -3 -3 -2 -2 -2 -1 -1 -1 ------- Run | Yrd Mat Mat Min Exi Min Mat Sto Rec Scr Fac Was Fac Ext Cet Arc Hub Fac Was Fac Upp Upp War Pro Fac Upp Upp Zhi Pro Res Qua Res Tes Frg Acc Com Ac0 Maximum Alert Level 4 | . . . . . . 1 1 . . 1 . 2 2 2 1 1 . . . . . . . . . . . . 1 . 1 1 4 4 4 . Low Security (%) 50 | 100 100 100 100 . 100 30 26 100 . 95 100 29 21 . 33 35 100 100 100 . . . . 100 . . . . 31 100 94 22 15 . . . Level 1 17 | . . . . . . 69 73 . . 4 . 16 20 98 66 64 . . . . . . . . . . . . 68 . 5 77 16 . . . Level 2 5 | . . . . . . . . . . . . 54 57 1 . . . . . . . . . . . . . . . . . . 7 . . . Level 3 11 | . . . . . . . . . . . . . . . . . . . . . . . . . . . . . . . . . 38 71 12 . Level 4 14 | . . . . . . . . . . . . . . . . . . . . . . . . . . . . . . . . . 21 28 87 . Level 5 . | . . . . . . . . . . . . . . . . . . . . . . . . . . . . . . . . . . . . . High Security . | . . . . . . . . . . . . . . . . . . . . . . . . . . . . . . . . . . . . . Max Security . | . . . . . . . . . . . . . . . . . . . . . . . . . . . . . . . . . . . . . Peak Influence 1379 | 5 136 88 73 . 180 397 302 130 . 240 44 546 556 400 273 364 197 66 76 . . . . 42 . . . . 344 158 268 272 1379 1220 1137 . Initial 827 | . 3 . 22 . . 66 85 49 . . 44 9 44 292 148 63 151 . . . . . . 37 . . . . 300 102 54 135 131 827 776 . Average 316 | 2 59 36 48 . 81 228 228 65 . 63 35 324 373 340 213 215 69 14 21 . . . . 16 . . . . 253 107 65 204 742 1033 942 . Influence Increases 12781 | 10 386 185 123 . 240 522 323 146 . 929 . 874 895 318 235 417 196 78 350 . . . 65 277 100 5 15 . 732 284 484 259 1982 516 577 1258 Destroy 0b10 Robot/C 2800 | . 180 120 80 . 80 . 80 20 . 320 . 80 420 160 80 80 . . . . . . . . 40 . . . . . 160 20 740 . 140 . Destroy 0b10 Robot/NC 505 | 10 20 . . . . 5 . 10 . 15 . 15 20 10 25 . 10 . 25 . . . 5 45 5 5 15 . 35 45 5 25 100 30 25 . Destroy Leader 404 | . 46 20 10 . 10 2 10 . . 62 . 12 42 . . 30 4 . 6 . . . . 6 10 . . . 8 . 30 12 62 8 14 . Allied During Kill 651 | . . . . . . . . . . 59 . . 274 133 82 76 . . . . . . . . . . . . . . 18 1 . . 8 . Trap Triggered on 0b10 100 | . . . . . . . . . . 30 . . . . . 20 . . 20 . . . . . . . . . 10 . 20 . . . . . Successful Hack 1245 | . 16 28 . . . 31 46 24 . 55 . 31 51 6 . 36 9 . 125 . . . . 94 . . . . 125 167 110 123 54 31 83 . Select Force Hacks 310 | . . . . . . 30 . 90 . 50 . . . . . . . . 50 . . . . . . . . . 90 . . . . . . . Disable Machine 750 | . 30 . . . . . 30 . . 60 . 15 . . 30 15 . . . . . . . . . . . . . 30 . 60 240 30 30 180 Anti-Garrison Action 350 | . . . . . . . . . . . . 200 . . . . . . . . . . . . . . . . . . . . 150 . . . Destroy Structure 2166 | . 19 2 3 . . 19 22 2 . 38 . 26 13 9 3 10 38 78 64 . . . . 72 . . . . 74 42 96 18 291 102 77 1048 Advance Influence 300 | . . . . . . . . . . . . . . . . . . . . . . . . . . . . . 300 . . . . . . . Partial Spotted 690 | . . 15 . . 15 75 45 . . . . 75 75 . 15 60 . . 45 . . . . 30 . . . . 60 . 45 . 90 15 . 30 Lose Combat Pursuer 2010 | . 75 . 30 . 135 360 90 . . 240 . 420 . . . 90 135 . 15 . . . 60 30 45 . . . 30 . . . 255 . . . Active Sensor Use 500 | . . . . . . . . . . . . . . . . . . . . . . . . . . . . . . . . . . 300 200 . Influence Decreases 11693 | 5 391 127 136 45 70 488 399 274 . 801 114 798 462 471 422 290 506 78 348 2 . . 5 331 103 8 5 10 550 368 342 265 837 682 577 1383 Entered New Map 3826 | . 2 . 36 45 . 104 119 79 . . 84 5 46 231 222 120 159 . . 2 . . . 23 3 2 . 10 . 80 44 105 103 552 437 1213 Time Decay 5104 | 5 339 67 80 . 60 254 90 185 . 321 10 296 206 160 120 100 187 38 308 . . . 5 287 95 6 5 . 350 278 238 120 644 130 120 . Search Patrol Dispatched 100 | . . . . . . 100 . . . . . . . . . . . . . . . . . . . . . . . . . . . . . . Lost Part 682 | . 40 60 20 . 10 30 20 10 . 80 20 37 . . . 50 . . 10 . . . . . 5 . . . 10 10 . 10 90 . . 170 Lost Ally 1022 | . 10 . . . . . 170 . . 191 . 10 210 80 80 20 10 40 30 . . . . 21 . . . . 40 . 60 30 . . 20 . Purge Threat 959 | . . . . . . . . . . 209 . 450 . . . . 150 . . . . . . . . . . . 150 . . . . . . . Squads Dispatched 126 | . 2 1 . . . 3 . . . 14 . 18 1 . . 2 12 . 13 . . . . 13 . . . . 13 4 9 2 7 8 4 . Investigation 72 | . 2 . . . . 1 . . . 9 . 12 . . . . 10 . 7 . . . . 8 . . . . 8 2 5 . 3 3 2 . Extermination 20 | . . . . . . . . . . 2 . 2 . . . . 2 . 2 . . . . 3 . . . . 1 2 2 2 . 1 1 . Reinforcement 28 | . . 1 . . . 2 . . . 2 . 4 1 . . 2 . . 4 . . . . 2 . . . . 4 . 1 . 4 1 . . Assault 4 | . . . . . . . . . . . . . . . . . . . . . . . . . . . . . . . . . . 3 1 . Garrison 2 | . . . . . . . . . . 1 . . . . . . . . . . . . . . . . . . . . 1 . . . . . Intercept . | . . . . . . . . . . . . . . . . . . . . . . . . . . . . . . . . . . . . . Searches Triggered 1 | . . . . . . 1 . . . . . . . . . . . . . . . . . . . . . . . . . . . . . . Unchained Authorized 5 | . . . . . . . . . . . . . . . . . . . 1 . . . . 1 1 . . . . 1 . . . 1 . . Construction Impeded 1 | . . . . . . . . . . . . . . . . . . . . . . . . . . . . . . . 1 . . . . . Haulers Reinforced 4 | . . . . . . . . . . . . . . . . . . . 1 . . . . 1 . . . . 2 . . . . . . . Active Scanning Responses 5 | . . . . . . . . . . . . . . . . . . . . . . . . . . . . . . . . . . 3 2 . Cargo Convoy Interrupts . | . . . . . . . . . . . . . . . . . . . . . . . . . . . . . . . . . . . . . Stealth | -11 -10 -9 -9 -9 -8 -8 -8 -8 -8 -6 -6 -6 -6 -6 -6 -6 -5 -5 -5 -5 -5 -5 -4 -4 -4 -4 -4 -3 -3 -3 -2 -2 -2 -1 -1 -1 --------- Run | Yrd Mat Mat Min Exi Min Mat Sto Rec Scr Fac Was Fac Ext Cet Arc Hub Fac Was Fac Upp Upp War Pro Fac Upp Upp Zhi Pro Res Qua Res Tes Frg Acc Com Ac0 Distress Signals 70 | . 1 1 . . . 1 1 . . 3 . 3 3 2 . 2 2 . 1 . . . . 1 . . . . 6 . 2 . 13 1 27 . Communications Jammed . | . . . . . . . . . . . . . . . . . . . . . . . . . . . . . . . . . . . . . Distress Signals . | . . . . . . . . . . . . . . . . . . . . . . . . . . . . . . . . . . . . . Times Spotted 584 | . 20 17 7 . 13 35 16 2 . 34 3 33 26 5 4 23 12 6 21 5 . 3 6 22 12 6 . 6 16 10 29 7 99 4 13 69 Peak Tracking Total 18 | . 4 10 4 . 6 14 5 2 . 4 3 12 5 5 2 13 6 3 8 5 . 4 6 4 3 5 . 5 3 4 8 2 18 2 4 10 Tactical Retreats 88 | . 2 . 1 . 4 7 3 . . 11 . 12 . . . 2 4 . 4 . . . 1 5 3 1 . . 3 2 5 . 12 1 1 4 ECM-based Alert Blocks 75 | . . . . . . . . . . . . . . . . . . . 12 . . . . 12 . 5 . . 2 6 9 . 26 2 1 . ID Masks Used 1 | . . . . . . . . . . . . . . . . . . . . . . . . . . . . . . . . 1 . . . . IFF Responses 12 | . . . . . . . . . . . . . . . . . . . . . . . . . . . . . . . . . 12 . . . Traps | -11 -10 -9 -9 -9 -8 -8 -8 -8 -8 -6 -6 -6 -6 -6 -6 -6 -5 -5 -5 -5 -5 -5 -4 -4 -4 -4 -4 -3 -3 -3 -2 -2 -2 -1 -1 -1 ------- Run | Yrd Mat Mat Min Exi Min Mat Sto Rec Scr Fac Was Fac Ext Cet Arc Hub Fac Was Fac Upp Upp War Pro Fac Upp Upp Zhi Pro Res Qua Res Tes Frg Acc Com Ac0 Traps Triggered 27 | . 2 . . . . . . . . 1 . 2 . . . . 1 . . . . . . 2 . . . . . . . . 19 . . . Indirectly . | . . . . . . . . . . . . . . . . . . . . . . . . . . . . . . . . . . . . . Trap Hack Attempts 436 | . . . . . . . . . . 96 . . 14 . . 16 20 . 51 . . . . 26 . . . . 36 6 57 . . . 114 . Triggered 2 | . . . . . . . . . . . . . 1 . . . . . . . . . . 1 . . . . . . . . . . . . Disarmed 8 | . . . . . . . . . . . . . . . . . 1 . 1 . . . . . . . . . 4 1 1 . . . . . Reprogrammed 60 | . . . . . . . . . . 9 . . 1 . . 2 3 . 14 . . . . 8 . . . . 5 . 6 . . . 12 . Reused 34 | . . . . . . . . . . 3 . . . . . 2 . . 7 . . . . . 6 . . . 1 3 2 . . . . 10 Traps Extracted 33 | . . . . . . . . . . 4 . . . . . . 3 . 3 . . . . 3 . . . . 2 3 3 . . . 12 . Installed 25 | . . . . . . . . . . . . . . . . . . . 3 . . . . . 6 . . . . 6 . . . . . 10 Triggered 10 | . . . . . . . . . . 3 . . . . . 2 . . 2 . . . . . . . . . 1 . 2 . . . . . Most Traps Carried 12 | . . . . . . . . . . 4 4 4 4 4 4 4 7 7 10 7 7 7 7 10 11 6 6 4 6 6 6 6 6 . 12 12 Machines | -11 -10 -9 -9 -9 -8 -8 -8 -8 -8 -6 -6 -6 -6 -6 -6 -6 -5 -5 -5 -5 -5 -5 -4 -4 -4 -4 -4 -3 -3 -3 -2 -2 -2 -1 -1 -1 ---------- Run | Yrd Mat Mat Min Exi Min Mat Sto Rec Scr Fac Was Fac Ext Cet Arc Hub Fac Was Fac Upp Upp War Pro Fac Upp Upp Zhi Pro Res Qua Res Tes Frg Acc Com Ac0 Machines Disabled 65 | . 2 . . . . . 2 . . 4 . 1 . . 2 1 . . . . 1 1 . . . . . . . 3 . 4 25 2 2 15 Max in Single Turn 2 | . 2 . . . . . 1 . . 2 . 1 . . 1 1 . . . . 1 1 . . . . . . . 1 . 1 1 1 1 1 Garrison Access 18 | . . . . . . . 1 . . 1 . 2 . . . 2 1 . 3 . . . . 2 . . . . 3 . 2 . 1 . . . Network Hub 1 | . . . . . . . . . . . . . . . . 1 . . . . . . . . . . . . . . . . . . . . Machines Repaired . | . . . . . . . . . . . . . . . . . . . . . . . . . . . . . . . . . . . . . Machines Dismantled 1 | . . . . . . . . . . . . . . . . 1 . . . . . . . . . . . . . . . . . . . . Machines Sabotaged . | . . . . . . . . . . . . . . . . . . . . . . . . . . . . . . . . . . . . . Overloaded Fab Kills 3 | . . . . . . . . . . 2 . . . . . . . . 1 . . . . . . . . . . . . . . . . . Hacking | -11 -10 -9 -9 -9 -8 -8 -8 -8 -8 -6 -6 -6 -6 -6 -6 -6 -5 -5 -5 -5 -5 -5 -4 -4 -4 -4 -4 -3 -3 -3 -2 -2 -2 -1 -1 -1 --------- Run | Yrd Mat Mat Min Exi Min Mat Sto Rec Scr Fac Was Fac Ext Cet Arc Hub Fac Was Fac Upp Upp War Pro Fac Upp Upp Zhi Pro Res Qua Res Tes Frg Acc Com Ac0 Machines Accessed 286 | . 7 3 . 1 . 11 8 9 4 25 . 28 9 1 . 6 17 . 28 . . 7 . 21 1 . 4 1 26 12 20 11 14 4 6 2 Terminals 152 | . 6 1 . . . 8 7 6 . 12 . 12 9 1 . 4 5 . 14 . . . . 10 . . . 1 13 9 10 8 7 3 6 . Fabricators 21 | . . . . . . . . . . 3 . 4 . . . . 1 . 3 . . . . 2 . . . . 2 . 1 1 4 . . . Repair Stations 10 | . . 1 . . . . . . . 2 . 1 . . . . 2 . 2 . . . . . . . . . 1 . 1 . . . . . Recycling Units 45 | . 1 . . . . 1 . 3 . 6 . 7 . . . . 6 . 4 . . . . 7 . . . . 3 . 4 . 2 1 . . Scanalyzers 17 | . . 1 . . . 2 . . . 1 . 1 . . . . 2 . 2 . . . . . . . . . 3 2 2 1 . . . . Garrison Access 22 | . . . . . . . 1 . . 1 . 3 . . . 2 1 . 3 . . . . 2 . . . . 4 1 2 1 1 . . . Total Hacks 925 | . 18 10 . 3 . 57 32 28 29 108 . 73 17 1 . 25 60 . 92 . . 7 . 58 1 . 14 1 77 40 62 28 41 5 19 19 Successful 604 | . 8 6 . 3 . 44 21 16 29 52 . 36 9 1 . 19 46 . 69 . . 7 . 42 1 . 14 1 52 21 39 14 25 4 6 19 Failed 316 | . 10 4 . . . 12 11 11 . 55 . 37 8 . . 6 14 . 22 . . . . 16 . . . . 24 19 23 14 16 1 13 . Catastrophic 44 | . . . . . . 1 2 1 . 13 . 7 . . . . 1 . 2 . . . . 4 . . . . . 3 2 4 2 . 2 . Database Lockouts 5 | . . . . . . 1 . 1 . 1 . . . . . . . . 1 . . . . . . . . . 1 . . . . . . . Manual 537 | . 17 3 . . . 34 27 21 . 72 . 37 9 1 . 17 28 . 59 . . . . 42 . . . . 32 31 36 22 32 1 16 . Terminals 574 | . 15 3 . . . 33 30 24 . 76 . 36 17 1 . 23 25 . 70 . . . . 38 . . . 1 35 31 44 23 26 4 19 . Fabricators 45 | . . . . . . . . . . 10 . 9 . . . . 3 . 6 . . . . 5 . . . . 4 . 2 1 5 . . . Repair Stations 23 | . . 3 . . . . . . . 5 . 1 . . . . 7 . 3 . . . . . . . . . 3 . 1 . . . . . Recycling Units 79 | . 3 . . . . 1 . 4 . 10 . 15 . . . . 7 . 5 . . . . 13 . . . . 7 . 5 . 8 1 . . Scanalyzers 94 | . . 4 . . . 23 . . . 5 . 6 . . . . 17 . 4 . . . . . . . . . 18 7 8 2 . . . . Garrison Access 37 | . . . . . . . 2 . . 2 . 6 . . . 2 1 . 4 . . . . 2 . . . . 10 2 2 2 2 . . . Terminal Hacks 191 | . . 1 . 3 . 4 10 4 29 16 . 5 4 1 . 7 6 . 28 . . 7 . 9 1 . 14 1 6 1 8 . 2 3 2 19 Record 61 | . . . . 3 . . . . 29 1 . . . . . . . . . . . 5 . . . . 5 1 . . . . . . . 17 Part Schematic 16 | . . . . . . . . 3 . 2 . . . . . . 1 . 4 . . . . . . . 4 . 1 . . . 1 . . . Robot Schematic 1 | . . . . . . . . . . . . . . . . . . . 1 . . . . . . . . . . . . . . . . . Robot Analysis 6 | . . . . . . . 3 . . . . . . . . . . . 1 . . . . . . . 1 . . . 1 . . . . . Prototype ID Bank 16 | . . . . . . . . 1 . 1 . . . . . 2 1 . 2 . . . . 2 . . 4 . . . 1 . 1 . 1 . Open Door 16 | . . . . . . . 1 . . . . 1 4 1 . . . . . . . 2 . . 1 . . . 2 . . . . 3 1 . Branch Access Points 4 | . . . . . . . 1 . . . . . . . . . . . 1 . . . . . . . . . 1 . 1 . . . . . Emergency Access Points 1 | . . . . . . . . . . 1 . . . . . . . . . . . . . . . . . . . . . . . . . . Machine Index 1 | . . . . . . . . . . . . . . . . . . . . . . . . 1 . . . . . . . . . . . . Terminal Index 9 | . . 1 . . . 1 1 . . 1 . . . . . 1 . . 1 . . . . 1 . . . . . 1 1 . . . . . Fabricator Index 2 | . . . . . . . . . . . . . . . . . . . 1 . . . . . . . . . . . 1 . . . . . Recycling Unit Index 1 | . . . . . . . . . . . . . . . . . . . 1 . . . . . . . . . . . . . . . . . Scanalyzer Index 1 | . . . . . . . . . . . . . . . . . . . 1 . . . . . . . . . . . . . . . . . Garrison Index 2 | . . . . . . . . . . . . . . . . . . . 1 . . . . . . . . . . . 1 . . . . . Alert Level 3 | . . . . . . . . . . . . 1 . . . . 1 . . . . . . . . . . . 1 . . . . . . . Unreport Threat 9 | . . . . . . . . . . 4 . 3 . . . . 1 . . . . . . . . . . . 1 . . . . . . . Locate Traps 4 | . . . . . . 1 . . . . . . . . . . 1 . 1 . . . . 1 . . . . . . . . . . . . Maintenance Status 1 | . . . . . . . . . . . . . . . . . . . 1 . . . . . . . . . . . . . . . . . Extermination Status 3 | . . . . . . . . . . . . . . . . 1 . . 1 . . . . 1 . . . . . . . . . . . . Recall Investigation 3 | . . . . . . . . . . . . . . . . . . . 3 . . . . . . . . . . . . . . . . . Recall Extermination 5 | . . . . . . . . . . 1 . . . . . . 1 . 2 . . . . 1 . . . . . . . . . . . . Hauler Manifests 1 | . . . . . . . . . . . . . . . . . . . 1 . . . . . . . . . . . . . . . . . Registered Components 5 | . . . . . . . . . . 1 . . . . . 1 . . 1 . . . . 1 . . . . . . 1 . . . . . Registered Prototypes 1 | . . . . . . . . . . . . . . . . . . . . . . . . . . . . . . . 1 . . . . . Zone Layout 17 | . . . . . . 2 4 . . 4 . . . . . 2 . . 4 . . . . 1 . . . . . . . . . . . . Gate Test 138-A 1 | . . . . . . . . . . . . . . . . . . . . . . . . . . . . . . . . . . . . 1 Gate Test 138-B 1 | . . . . . . . . . . . . . . . . . . . . . . . . . . . . . . . . . . . . 1 Fabricator Hacks 29 | . . . . . . . . . . 5 . 7 . . . . 2 . 3 . . . . 3 . . . . 3 . 1 . 5 . . . Network Status 6 | . . . . . . . . . . 1 . 2 . . . . 1 . . . . . . 1 . . . . 1 . . . . . . . Load Schematic 15 | . . . . . . . . . . 2 . 3 . . . . 1 . 2 . . . . 1 . . . . 1 . 1 . 4 . . . Build 8 | . . . . . . . . . . 2 . 2 . . . . . . 1 . . . . 1 . . . . 1 . . . 1 . . . Repair Station Hacks 11 | . . 1 . . . . . . . 2 . . . . . . 4 . 1 . . . . . . . . . 3 . . . . . . . Scan Component 4 | . . . . . . . . . . 1 . . . . . . 2 . . . . . . . . . . . 1 . . . . . . . Repair 4 | . . . . . . . . . . 1 . . . . . . 2 . . . . . . . . . . . 1 . . . . . . . Refit 3 | . . 1 . . . . . . . . . . . . . . . . 1 . . . . . . . . . 1 . . . . . . . Recycling Unit Hacks 7 | . . . . . . . . . . . . 3 . . . . . . . . . . . 3 . . . . 1 . . . . . . . Process 2 | . . . . . . . . . . . . 1 . . . . . . . . . . . 1 . . . . . . . . . . . . Retrieve Matter 5 | . . . . . . . . . . . . 2 . . . . . . . . . . . 2 . . . . 1 . . . . . . . Scanalyzer 78 | . . 2 . . . 21 . . . 4 . 4 . . . . 16 . 4 . . . . . . . . . 14 5 6 2 . . . . Insert Component 29 | . . . . . . 10 . . . 2 . . . . . . 6 . 2 . . . . . . . . . 4 3 1 1 . . . . Analyze 31 | . . . . . . 10 . . . 2 . . . . . . 8 . 1 . . . . . . . . . 9 1 . . . . . . Retrieve Study 18 | . . 2 . . . 1 . . . . . 4 . . . . 2 . 1 . . . . . . . . . 1 1 5 1 . . . . Garrison Access Hacks 16 | . . . . . . . 1 . . 1 . 1 . . . 2 1 . 3 . . . . 2 . . . . 3 . 2 . . . . . Seal Access 16 | . . . . . . . 1 . . 1 . 1 . . . 2 1 . 3 . . . . 2 . . . . 3 . 2 . . . . . Unauthorized Hacks 271 | . 8 2 . . . 19 10 12 . 24 . 16 5 . . 10 17 . 30 . . . . 25 . . . . 22 15 22 12 18 . 4 . Terminals 210 | . 8 2 . . . 18 10 9 . 15 . 7 5 . . 10 7 . 22 . . . . 18 . . . . 16 15 16 11 17 . 4 . Track 31 | . . . . . . 2 2 . . 1 . . 1 . . 2 . . 6 . . . . 3 . . . . 1 4 2 2 3 . 2 . Assimilate 28 | . 2 . . . . 2 1 . . 2 . . 1 . . 1 1 . 4 . . . . 2 . . . . 4 1 5 2 . . . . Botnet 61 | . 1 1 . . . 6 2 4 . 6 . 1 2 . . 3 2 . 7 . . . . 8 . . . . 4 3 4 2 3 . 2 . Disrupt 6 | . . . . . . 1 . . . . . . 1 . . . . . . . . . . . . . . . . . . . 4 . . . Operators 1 | . . . . . . . . . . . . . . . . . . . . . . . . . . . . . . . . . 1 . . . Skim 83 | . 5 1 . . . 7 5 5 . 6 . 6 . . . 4 4 . 5 . . . . 5 . . . . 7 7 5 5 6 . . . Fabricators 9 | . . . . . . . . . . 2 . 1 . . . . 1 . 3 . . . . . . . . . . . 1 1 . . . . Prioritize 1 | . . . . . . . . . . . . . . . . . . . 1 . . . . . . . . . . . . . . . . . Liberate 1 | . . . . . . . . . . . . . . . . . . . . . . . . . . . . . . . . 1 . . . . Overload 2 | . . . . . . . . . . 1 . . . . . . . . 1 . . . . . . . . . . . . . . . . . Recompile 5 | . . . . . . . . . . 1 . 1 . . . . 1 . 1 . . . . . . . . . . . 1 . . . . . Repair Stations 7 | . . . . . . . . . . 1 . 1 . . . . 3 . 1 . . . . . . . . . . . 1 . . . . . Mechanics 3 | . . . . . . . . . . . . . . . . . 1 . 1 . . . . . . . . . . . 1 . . . . . Patch 4 | . . . . . . . . . . 1 . 1 . . . . 2 . . . . . . . . . . . . . . . . . . . Recycling Units 41 | . . . . . . 1 . 3 . 6 . 6 . . . . 6 . 4 . . . . 7 . . . . 3 . 4 . 1 . . . Tunnel 4 | . . . . . . 1 . 3 . . . . . . . . . . . . . . . . . . . . . . . . . . . . Fedlink 36 | . . . . . . . . . . 6 . 6 . . . . 6 . 4 . . . . 7 . . . . 3 . 3 . 1 . . . Scraphulk 1 | . . . . . . . . . . . . . . . . . . . . . . . . . . . . . . . 1 . . . . . Scanalyzers 3 | . . . . . . . . . . . . . . . . . . . . . . . . . . . . . 3 . . . . . . . Extract 3 | . . . . . . . . . . . . . . . . . . . . . . . . . . . . . 3 . . . . . . . Garrison Access 1 | . . . . . . . . . . . . 1 . . . . . . . . . . . . . . . . . . . . . . . . Jam 1 | . . . . . . . . . . . . 1 . . . . . . . . . . . . . . . . . . . . . . . . Data Cores Recovered 9 | . . . . . . . . . . . . 1 . . . . . . . . . . . 1 . . . . 1 2 . 1 2 1 . . Used 3 | . . . . . . . . . . . . 1 . . . . . . . . . . . . . . . . . . . 1 1 . . . Hacking Detections 176 | . 6 3 . . . 8 7 6 . 16 . 21 6 1 . 4 6 . 16 . . . . 13 . . . . 18 11 12 9 9 . 4 . Full Trace Events 12 | . 1 . . . . . . . . . . 3 . . . . 1 . 1 . . . . 1 . . . . 1 2 . . 2 . . . Feedback Events 2 | . . . . . . . . . . . . . . . . . . . . . . . . . . . . . . 2 . . . . . . Corruption 1 | . . . . . . . . . . . . . . . . . . . . . . . . . . . . . . 1 . . . . . . Hackware Fried 1 | . . . . . . . . . . . . . . . . . . . . . . . . . . . . . . 1 . . . . . . Feedback Blocked . | . . . . . . . . . . . . . . . . . . . . . . . . . . . . . . . . . . . . . Robot Schematics Acquired 56 | . . . . . . . . . . . . . . . . . . . 55 . . . . . . . . . . . . . 1 . . . Robots Built . | . . . . . . . . . . . . . . . . . . . . . . . . . . . . . . . . . . . . . Authchips . | . . . . . . . . . . . . . . . . . . . . . . . . . . . . . . . . . . . . . Time 152 | . . . . . . . . . . 152 . . . . . . . . . . . . . . . . . . . . . . . . . . Total Robot Build Rating . | . . . . . . . . . . . . . . . . . . . . . . . . . . . . . . . . . . . . . Part Schematics Acquired 89 | . . . . . . 10 . 3 . 4 . . . . . . 7 . 5 . . . . . . . 4 . 21 20 . 5 10 . . . Parts Built 12 | . . . . . . . . . . 2 . 4 . . . . . . 1 . . . . 2 . . . . 2 . . . 1 . . . Authchips 4 | . . . . . . . . . . 1 . 1 . . . . . . 1 . . . . . . . . . . . . . 1 . . . Time 277 | . . . . . . . . . . 28 . 94 . . . . . . 28 . . . . 35 . . . . 24 . . . 68 . . . Total Part Build Rating 60 | . . . . . . . . . . 8 . 20 . . . . . . 6 . . . . 12 . . . . 6 . . . 8 . . . Part Studies Acquired 18 | . . 2 . . . 1 . . . . . 4 . . . . 2 . 1 . . . . . . . . . 1 1 5 1 . . . . Parts Repaired 4 | . . . . . . . . . . 1 . . . . . . 2 . . . . . . . . . . . 1 . . . . . . . Time 166 | . . . . . . . . . . 38 . . . . . . 116 . . . . . . . . . . . 12 . . . . . . . Parts Recycled . | . . . . . . . . . . . . . . . . . . . . . . . . . . . . . . . . . . . . . Recycled Matter 165 | . . . . . . . . . . . . 155 . . . . . . . . . . . 10 . . . . . . . . . . . . Retrieved Matter 317 | . . . . . . . . . . . . 155 . . . . . . . . . . . 10 . . . . 152 . . . . . . . Retrieved Components . | . . . . . . . . . . . . . . . . . . . . . . . . . . . . . . . . . . . . . Parts Scanalyzed 24 | . . . . . . 10 . . . 2 . . . . . . 6 . 1 . . . . . . . . . 3 2 . . . . . . Part Schematics Acquired 23 | . . . . . . 10 . . . 2 . . . . . . 6 . 1 . . . . . . . . . 3 1 . . . . . . Parts Damaged 4 | . . . . . . 1 . . . 1 . . . . . . 1 . . . . . . . . . . . . 1 . . . . . . Bothacking | -11 -10 -9 -9 -9 -8 -8 -8 -8 -8 -6 -6 -6 -6 -6 -6 -6 -5 -5 -5 -5 -5 -5 -4 -4 -4 -4 -4 -3 -3 -3 -2 -2 -2 -1 -1 -1 ------------ Run | Yrd Mat Mat Min Exi Min Mat Sto Rec Scr Fac Was Fac Ext Cet Arc Hub Fac Was Fac Upp Upp War Pro Fac Upp Upp Zhi Pro Res Qua Res Tes Frg Acc Com Ac0 Used RIF Installer . | . . . . . . . . . . . . . . . . . . . . . . . . . . . . . . . . . . . . . Robots Hacked 70 | . . . . . . . . . . 4 . 4 2 . 4 2 5 . 8 . . . . 8 . . . . 7 8 4 7 7 . . . Non-combat 7 | . . . . . . . . . . . . . . . 3 . 2 . . . . . . 1 . . . . 1 . . . . . . . Combat 1 | . . . . . . . . . . . . . . . 1 . . . . . . . . . . . . . . . . . . . . . Robot Hacks Applied 8 | . . . . . . . . . . . . . . . 4 . 2 . . . . . . 1 . . . . 1 . . . . . . . parse_system 1 | . . . . . . . . . . . . . . . 1 . . . . . . . . . . . . . . . . . . . . . no_distress 1 | . . . . . . . . . . . . . . . . . . . . . . . . . . . . . 1 . . . . . . . find_chute 3 | . . . . . . . . . . . . . . . . . 2 . . . . . . 1 . . . . . . . . . . . . check_alert 3 | . . . . . . . . . . . . . . . 3 . . . . . . . . . . . . . . . . . . . . . Manual 62 | . . . . . . . . . . 4 . 4 2 . . 2 3 . 8 . . . . 7 . . . . 6 8 4 7 7 . . . Relay Couplers Released 2 | . . . . . . . 1 . . . . . . . . . . . . . . . . . . . . . . . . . 1 . . . Machine Destruction 2 | . . . . . . . 1 . . . . . . . . . . . . . . . . . . . . . . . . . 1 . . . Fabnet Peak Effective % . | . . . . . . . . . . . . . . . . . . . . . . . . . . . . . . . . . . . . . Robots Rewired 31 | . . . . . . . . 11 . . . . 13 . . . . . . . . 5 . 1 . . . . . . . 1 . . . . Allies Hacked . | . . . . . . . . . . . . . . . . . . . . . . . . . . . . . . . . . . . . . Hacks Repelled . | . . . . . . . . . . . . . . . . . . . . . . . . . . . . . . . . . . . . . Allies | -11 -10 -9 -9 -9 -8 -8 -8 -8 -8 -6 -6 -6 -6 -6 -6 -6 -5 -5 -5 -5 -5 -5 -4 -4 -4 -4 -4 -3 -3 -3 -2 -2 -2 -1 -1 -1 -------- Run | Yrd Mat Mat Min Exi Min Mat Sto Rec Scr Fac Was Fac Ext Cet Arc Hub Fac Was Fac Upp Upp War Pro Fac Upp Upp Zhi Pro Res Qua Res Tes Frg Acc Com Ac0 Total Allies 89 | . 1 . . . . 2 1 11 1 3 . 1 19 5 . . 1 18 5 . . 5 . 3 . . . . 4 . 5 4 . . . . Largest Group 18 | . 1 . . . . 2 2 11 12 12 . 1 11 10 8 3 1 18 3 . . 5 . 1 . . . . 2 . 2 3 . . . . Highest-Rated Group 751 | . 10 . . . . 36 36 163 227 227 . 23 435 751 610 279 26 638 63 . . 263 . 47 . . . . 78 . 139 180 . . . . Highest-Rated Ally 159 | . 10 . . . . 26 26 27 64 64 . 23 159 152 152 96 26 50 26 . . 68 . 47 . . . . 45 . 139 118 . . . . Total Orders 38 | . . . . . . 4 3 . 2 . . . . 2 2 2 . . . . . 2 . . 2 . . . . . . 1 . . 4 14 STAY 6 | . . . . . . 2 . . 2 . . . . . . 1 . . . . . . . . . . . . . . . 1 . . . . ROAM 2 | . . . . . . . . . . . . . . 1 1 . . . . . . . . . . . . . . . . . . . . . FOLLOW 5 | . . . . . . 2 . . . . . . . 1 1 1 . . . . . . . . . . . . . . . . . . . . GUARD 2 | . . . . . . . . . . . . . . . . . . . . . . 2 . . . . . . . . . . . . . . EXPLORE 10 | . . . . . . . 3 . . . . . . . . . . . . . . . . . 2 . . . . . . . . . 1 4 RETURN 13 | . . . . . . . . . . . . . . . . . . . . . . . . . . . . . . . . . . . 3 10 Ally Attacks 748 | . . . . . . . . . . 70 . . 175 68 47 16 . 163 . . . . . 6 . . . . . . 19 8 . . 48 128 Total Damage 27209 | . . . . . . . . . . 1776 . . 3648 1457 1500 592 . 8118 . . . . . 151 . . . . . . 1396 522 . . 2551 5498 Kills 88 | . . . . . . . . . . 14 . . 19 10 4 4 . 20 . . . . . . . . . . . . 9 1 . . 3 4 Allies Corrupted 6 | . . . . . . . . . . . . . . . . . . . . . . . . . . . . . . . . 1 . . 3 2 Allies Melted 2 | . . . . . . . . . . . . . . . . . . . . . . . . . . . . . . . . . 2 . . . Intel | -11 -10 -9 -9 -9 -8 -8 -8 -8 -8 -6 -6 -6 -6 -6 -6 -6 -5 -5 -5 -5 -5 -5 -4 -4 -4 -4 -4 -3 -3 -3 -2 -2 -2 -1 -1 -1 ------- Run | Yrd Mat Mat Min Exi Min Mat Sto Rec Scr Fac Was Fac Ext Cet Arc Hub Fac Was Fac Upp Upp War Pro Fac Upp Upp Zhi Pro Res Qua Res Tes Frg Acc Com Ac0 Active Infowar (turns) 19195 | 16 593 52 . . . 501 104 388 480 855 21 591 436 332 256 201 463 186 1290 157 110 282 116 757 1186 107 54 49 799 611 505 255 3613 267 1583 1979 Optics 3914 | . . . . . . . . . . . . . . . . . . . . . . . . . . . . . . . . . 3507 267 140 . Sensors 10051 | . . . . . . . . . . 450 21 202 436 332 256 197 458 186 1283 156 110 278 116 757 1178 107 54 49 799 611 505 255 1255 . . . A.S.S. 4844 | . . . . . . . . . . . . . . . . . . . . . . . . . . . . . . . . . 1035 267 1563 1979 IFF 103 | . . . . . . . . . . 103 . . . . . . . . . . . . . . . . . . . . . . . . . . Zeronet 453 | . . . . . . . . . . . . . . . . . . . 28 157 110 158 . . . . . . . . . . . . . . Terrain 2087 | . . . . . . . . . . . . . . . . . . . . . . . . . . . . . 556 611 505 255 160 . . . Structural 3933 | . . . . . . . . . . 379 . 212 50 271 237 111 325 184 920 . . . . 538 520 . . . 186 . . . . . . . Seismic 2595 | 16 593 52 . . . 501 104 388 480 72 . 389 . . . . . . . . . . . . . . . . . . . . . . . . Cloaking 7134 | . . . . . . . . . . . . . . . . . . . . . . 3 . 566 267 40 . 6 730 611 505 255 3379 267 166 339 ECM 1867 | . . . . . . . . . . . . . . . . . . . 44 . . . . 35 . 5 3 . 38 276 505 236 210 188 121 206 ID Mask 30 | . . . . . . . . . . . . . . . . . . . . . . . . . . . . . . . . 2 28 . . . Robot Analysis Total 103 | . . . . . . . 3 . . . . . . . . . . . 98 . . . . . . . 1 . . . 1 . . . . . Derelict Logs Recovered 8 | . . . 1 . . . . . . . . . . . . . . . . 2 1 . . . 3 1 . . . . . . . . . . Drone Launches 73 | . . . . . . . 25 . . . . . . . . . . . . . . . . . 5 . . . . . . . . . 19 24 Drone Recoveries 40 | . . . . . . . 9 . . . . . . . . . . . . . . . . . 2 . . . . . . . . . 13 16 Exploration | -11 -10 -9 -9 -9 -8 -8 -8 -8 -8 -6 -6 -6 -6 -6 -6 -6 -5 -5 -5 -5 -5 -5 -4 -4 -4 -4 -4 -3 -3 -3 -2 -2 -2 -1 -1 -1 ------------- Run | Yrd Mat Mat Min Exi Min Mat Sto Rec Scr Fac Was Fac Ext Cet Arc Hub Fac Was Fac Upp Upp War Pro Fac Upp Upp Zhi Pro Res Qua Res Tes Frg Acc Com Ac0 Turns Passed 20305 | 49 876 154 170 43 157 551 192 388 480 869 29 696 436 332 256 201 468 186 1302 157 110 282 116 757 1186 107 54 49 799 611 505 255 3619 267 1583 2013 Spaces Moved 38588 | 42 562 160 303 126 293 786 364 640 1243 1584 82 1743 776 282 169 439 1121 455 2878 358 281 930 362 1945 2204 327 146 201 2097 1238 1250 715 6415 507 2082 3482 Core 690 | 42 562 57 . . . . . . . . . 1 . . 28 . . . . . . . . . . . . . . . . . . . . . Treads . | . . . . . . . . . . . . . . . . . . . . . . . . . . . . . . . . . . . . . Legs . | . . . . . . . . . . . . . . . . . . . . . . . . . . . . . . . . . . . . . Wheels . | . . . . . . . . . . . . . . . . . . . . . . . . . . . . . . . . . . . . . Hover 7210 | . . 27 . . . . . . . . . . . . . . . . . . . . . . . . . . . . . . 1112 507 2082 3482 Flight 30688 | . . 76 303 126 293 786 364 640 1243 1584 82 1742 776 282 141 439 1121 455 2878 358 281 930 362 1945 2204 327 146 201 2097 1238 1250 715 5303 . . . Fastest Speed 7 | 50 50 37 32 34 34 27 27 29 25 24 29 7 20 24 24 24 20 17 19 7 7 7 18 18 13 13 19 19 16 24 20 17 14 32 32 32 Average Speed 25 | 50 50 49 34 34 34 28 27 29 26 25 30 23 21 24 94 24 23 18 22 21 21 21 21 19 18 18 19 19 23 24 24 20 23 32 32 36 Slowest Speed 450 | 50 50 80 40 34 34 31 29 29 29 97 34 250 28 24 450 24 84 24 24 22 22 22 22 95 19 19 19 19 25 24 100 24 106 32 32 124 Overloaded Moves 141 | . . . . . . . . . . . . 23 . . . . . . . 8 2 4 . . 7 9 . . . . 6 10 72 . . . Propulsion Burnouts . | . . . . . . . . . . . . . . . . . . . . . . . . . . . . . . . . . . . . . Robots Hopped 247 | . . 13 . . 7 10 9 3 . 24 4 15 8 . . 4 3 . 56 . . 3 . 3 . . . . 5 28 19 13 20 . . . Potential Cave-ins 11 | . . . . . . . . . . . . . . . . . . . . . . . . . . . . . . 4 . . . 2 . 5 Cave-ins Triggered . | . . . . . . . . . . . . . . . . . . . . . . . . . . . . . . . . . . . . . Teleports 4 | . . . . . . . . . . . . . . . . . . . . . . . . . . . . . . 1 . . 1 . 1 1 Exploration Rate (%) 62 | 3 90 22 68 49 56 56 88 92 61 42 68 49 67 83 84 61 40 93 62 48 45 94 58 48 96 58 60 43 65 82 45 78 86 24 64 98 Regions Visited 36 Branch Regions 23 Pre-discovered Areas 28 | . . . . 1 . 2 1 6 5 2 . 1 . . . . . . 1 . . . . 1 1 . 3 . 1 2 . . 1 . . . Known Exits Taken 30 | . 1 1 1 . 1 1 1 1 1 . . 1 1 1 1 1 . . 1 1 1 1 1 1 1 1 1 1 1 1 1 1 1 1 1 . Unknown Exits Taken 2 | 1 . . . 1 . . . . . . . . . . . . . . . . . . . . . . . . . . . . . . . . Scrap Searched 21 | . . . 1 . 1 . . . 7 . . . . . . . . . . 1 2 . 1 . 5 1 . 2 . . . . . . . . Spaces Dug 414 | . 6 2 3 . . 19 10 2 . 20 . 26 10 . . 7 19 . 32 6 8 . 2 36 8 8 . . 37 28 23 6 34 28 15 19 Terrain Destroyed 699 | . 18 2 3 . . 19 22 2 . 25 . 26 10 . . 7 19 1 32 6 8 . 2 36 10 8 . . 37 28 23 6 49 40 28 232 Melee 329 | . 5 2 3 . . 19 10 2 . 20 . 26 10 . . 7 19 . 32 6 8 . 2 33 8 8 . . 31 10 23 6 17 8 11 3 Projectile 341 | . 1 . . . . . . . . . . . . . . . . 1 . . . . . 3 2 . . . 6 18 . . 32 32 17 229 AOE 29 | . 12 . . . . . 12 . . 5 . . . . . . . . . . . . . . . . . . . . . . . . . . Terrain Rammed . | . . . . . . . . . . . . . . . . . . . . . . . . . . . . . . . . . . . . . Walls Destroyed . | . . . . . . . . . . . . . . . . . . . . . . . . . . . . . . . . . . . . . Machines Disabled . | . . . . . . . . . . . . . . . . . . . . . . . . . . . . . . . . . . . . . Actions | -11 -10 -9 -9 -9 -8 -8 -8 -8 -8 -6 -6 -6 -6 -6 -6 -6 -5 -5 -5 -5 -5 -5 -4 -4 -4 -4 -4 -3 -3 -3 -2 -2 -2 -1 -1 -1 --------- Run | Yrd Mat Mat Min Exi Min Mat Sto Rec Scr Fac Was Fac Ext Cet Arc Hub Fac Was Fac Upp Upp War Pro Fac Upp Upp Zhi Pro Res Qua Res Tes Frg Acc Com Ac0 Total 46807 | 55 1061 188 349 125 328 1055 424 828 1402 1954 82 1955 980 544 248 514 1294 546 3360 426 315 1009 391 2263 2876 357 166 206 2310 1436 1403 783 7973 572 2930 4099 Wait 5049 | . 440 16 11 . 25 213 36 158 131 207 1 122 135 261 54 49 88 76 333 61 26 54 23 194 543 19 . 3 54 90 69 39 696 24 572 226 Move 38092 | 41 561 136 302 125 279 765 346 633 1242 1538 75 1713 760 281 168 431 1115 454 2769 357 280 924 361 1938 2203 326 145 200 2087 1183 1213 691 6382 506 2081 3481 Hop 214 | . . 10 . . 6 10 8 3 . 22 2 14 7 . . 3 3 . 52 . . 2 . 3 . . . . 4 26 17 10 12 . . . Pick Up 177 | 3 2 3 4 . 3 9 . . 13 6 1 6 . . 1 . 10 1 7 . . 3 . 5 5 . 2 . 6 6 3 1 53 2 7 15 Fast Attach 165 | 5 5 2 4 . . 2 3 . 1 9 1 14 1 . 2 . 5 1 6 1 . 4 1 8 3 . 5 . 9 7 2 1 47 . 4 12 Attach 129 | . . 2 1 . 2 4 3 1 . 6 . 12 . . . 1 6 1 5 . . 4 . 6 7 . 2 . 3 6 4 . 24 2 5 22 Detach 68 | . 1 . 1 . . . 1 . . 2 . 6 . . . . 3 1 4 . . 4 . 3 5 1 1 . 5 4 2 1 14 . 3 6 Swap 304 | . 2 2 8 . 4 8 2 2 2 13 . 9 5 2 2 1 8 2 27 1 . 1 . 14 9 2 2 . 15 15 1 11 68 1 33 32 Drop 242 | . 3 1 8 . 1 11 3 . 13 4 2 13 . . 5 . 7 2 15 . . 6 . 9 7 . 5 . 17 10 3 3 75 . 11 8 Fire 1002 | 6 40 14 7 . 8 3 1 . . 1 . . 1 . . . . 8 15 . . 1 . 3 76 . . . 6 20 1 . 449 24 61 257 Melee 806 | . 7 2 3 . . 30 14 31 . 50 . 46 57 . 16 9 29 . 73 6 9 6 6 54 12 9 4 3 68 57 31 26 73 13 35 27 Ram . | . . . . . . . . . . . . . . . . . . . . . . . . . . . . . . . . . . . . . Kick . | . . . . . . . . . . . . . . . . . . . . . . . . . . . . . . . . . . . . . Crush . | . . . . . . . . . . . . . . . . . . . . . . . . . . . . . . . . . . . . . Escape Stasis 80 | . . . . . . . . . . . . . . . . . . . . . . . . . . . . . . . . . 80 . . . Rewire 3 | . . . . . . . . . . . . . . . . 1 . . . . . . . . . . . . . . . . . . 2 . Trap 461 | . . . . . . . . . . 96 . . 14 . . 16 20 . 54 . . . . 26 6 . . . 36 12 57 . . . 114 10 Miscellaneous 15 | . . . . . . . 7 . . . . . . . . 3 . . . . . . . . . . . . . . . . . . 2 3 Route ------- -11/Scrapyard -10/Materials (discovered 5 exits: *Mat x3 / *Min / Sub) -9/Materials (discovered 3 exits: Mat x2 / *Min) -9/Mines (discovered 2 exits: *Mat / *Exi) -9/Exiles -8/Mines -8/Materials (discovered 4 exits: Fac x3 / *Sto) -8/Storage (discovered 2 exits: *Fac / *Rec) -8/Recycling (discovered 2 exits: *Fac / *Scr) -8/Scraptown (discovered 2 exits: *Fac x2) -6/Factory (discovered 7 exits: Fac x4 / Low / Ext x2) -6/Waste -6/Factory (discovered 2 exits: Fac / *Ext) -6/Extension (discovered 3 exits: *Fac x2 / *Cet) -6/Cetus (discovered 2 exits: *Fac / *Arc) -6/Archives (discovered 3 exits: Fac / *Hub x2) -6/Hub_04(d) (discovered 2 exits: *Fac x2) -5/Factory (discovered 3 exits: *Fac x2 / Upp) -5/Waste -5/Factory (discovered 3 exits: *Fac / *Upp x2) -5/Upper Caves -5/Upper Caves (discovered 2 exits: *Fac / *War) -5/Warlord -4/Proximity Caves -4/Factory (discovered 6 exits: *Res x4 / *Upp x2) -4/Upper Caves -4/Upper Caves (discovered 2 exits: Res / *Zhi) -4/Zhirov -3/Proximity Caves -3/Research (discovered 6 exits: *Res x3 / *Arm / *Qua x2) -3/Quarantine -2/Research (discovered 5 exits: Acc x3 / *Tes x2) -2/Testing (discovered 3 exits: Acc / *Sec / *Frg) -2/Protoforge -1/Access (discovered 2 exits: Sur / *Com) -1/Command (discovered 3 exits: *Sur x2 / *Ac0) -1/Access_0 0b11 Command History --------- Turn | Location | Event 6 | -11/Scrapyard | Discovered new exit (range 13) 50 | -11/Scrapyard | Entered Materials 197 | -10/Materials | Core integrity fell below 50% 217 | -10/Materials | Discovered new exit (range 16) 227 | -10/Materials | Lost 4 parts (2n1u1w) 246 | -10/Materials | Discovered new exit (range 14) 305 | -10/Materials | Build established: Mutant 346 | -10/Materials | Core integrity fell below 20% 453 | -10/Materials | Discovered new exit (range 3) 464 | -10/Materials | Discovered new exit (range 11) 492 | -10/Materials | Identified exit to Subcaves 492 | -10/Materials | Learned location of 1 exit from Materials 672 | -10/Materials | Identified exit to Materials 672 | -10/Materials | Identified exit to Mines 712 | -10/Materials | Learned location of 2 exits from Mines 742 | -10/Materials | Learned location of 2 exits from Materials 783 | -10/Materials | Learned 4 Recycling zone layouts 898 | -10/Materials | Learned Storage trap positions 926 | -10/Materials | Entered another Materials area 926 | -9/Materials | Evolved 2 slots: Propulsion x1, Utility x1 927 | -9/Materials | Identified exit to Materials 927 | -9/Materials | Identified exit to Mines 1022 | -9/Materials | Core integrity fell below 50% 1054 | -9/Materials | Lost 4 parts (1n1u2w) 1080 | -9/Materials | Entered Mines 1081 | -9/Mines | Identified exit to Exiles 1085 | -9/Mines | Met a Derelict bent on vengeance 1112 | -9/Mines | Core integrity fell below 20% 1154 | -9/Mines | Learned location of 1 exit from Materials 1165 | -9/Mines | Excavation squad dispatched 1165 | -9/Mines | A large section of the Mines collapsed 1233 | -9/Mines | Found DCF Scrap (14 items) 1248 | -9/Mines | Deemed a non-threat by the Exiles lab entrance 1250 | -9/Mines | Entered Exiles 1258 | -9/Exiles | Met 8R-AWN 1264 | -9/Exiles | Met EX-HEX 1277 | -9/Exiles | Met EX-DEC 1280 | -9/Exiles | Learned location of Zion (-7) 1290 | -9/Exiles | Discovered new exit (range 10) 1293 | -9/Exiles | Entered Mines 1401 | -8/Mines | Discovered exit to Materials (range 12) 1450 | -8/Mines | Entered Materials 1450 | -8/Materials | Evolved 2 slots: Propulsion x2 1451 | -8/Materials | Identified exit to Storage 1537 | -8/Materials | Central database locked down 1807 | -8/Materials | Learned location of Extension (-6) 1839 | -8/Materials | Build established: Sprinter 1846 | -8/Materials | Learned location of 2 exits from Factory 1850 | -8/Materials | Search patrols dispatched 1874 | -8/Materials | Learned Factory security intel 1892 | -8/Materials | Learned 4 Lower Caves zone layouts 1900 | -8/Materials | Learned location of 1 exit from Recycling 1901 | -8/Materials | Learned location of 1 exit from Recycling 1908 | -8/Materials | Identified exit to Factory 1925 | -8/Materials | Learned Factory stockpile data 1986 | -8/Materials | Learned location of 1 exit from Recycling 2001 | -8/Materials | Entered Storage 2001 | -8/Storage | Accompanied by 2 allies 2002 | -8/Storage | Loaded intel: 25 trap records 2015 | -8/Storage | Identified exit to Recycling 2104 | -8/Storage | Discovered exit to Factory (range 24) 2116 | -8/Storage | Learned 4 Factory zone layouts 2156 | -8/Storage | Used back door to open Recycling access 2157 | -8/Storage | Learned location of Lower Caves (-6) 2187 | -8/Storage | Loaded intel: 1 garrison access location 2193 | -8/Storage | Entered Recycling 2194 | -8/Recycling | Joined Warlord attack on 0b10 via Recycling 2194 | -8/Recycling | Identified exit to Scraptown 2194 | -8/Recycling | Identified exit to Factory 2197 | -8/Recycling | Lost 13 allies 2321 | -8/Recycling | Learned Factory security intel 2354 | -8/Recycling | Learned location of 1 exit from Extension 2388 | -8/Recycling | Learned location of 1 exit from Storage 2404 | -8/Recycling | Learned location of Storage (-8) 2427 | -8/Recycling | Learned Factory trap positions 2496 | -8/Recycling | Scanned before Scraplab entrance 2511 | -8/Recycling | Entered Scraplab 2581 | -8/Recycling | Entered Scraptown 2581 | -8/Scraptown | Accompanied by 11 allies 2606 | -8/Scraptown | Heard Great Nut preacher, LISTEN AND RECITE! 2614 | -8/Scraptown | Visited Shadow of the Wyrm 2622 | -8/Scraptown | Visited Symbiants 2629 | -8/Scraptown | Visited Fellowship of the Rings 2637 | -8/Scraptown | Visited Red Mages 2639 | -8/Scraptown | Visited Comm Corps 2644 | -8/Scraptown | Visited SPCMW 2649 | -8/Scraptown | Build established: Commander-Sprinter 2652 | -8/Scraptown | Visited UFD Registry 2652 | -8/Scraptown | Registered with UFD as "Cogeater" 2653 | -8/Scraptown | Visited Bundlers 2674 | -8/Scraptown | Visited Abandonware Association 2676 | -8/Scraptown | Learned abandonware demo "OVRCLOCK.EXE" 2677 | -8/Scraptown | Learned abandonware demo "REPAIR.EXE" 2677 | -8/Scraptown | Learned abandonware demo "SHUTEYE.EXE" 2683 | -8/Scraptown | Visited Curators Association 2693 | -8/Scraptown | Visited Botcube Research 2694 | -8/Scraptown | Found Botcube 2710 | -8/Scraptown | Visited Chapter 10 2714 | -8/Scraptown | Visited DA-N13 Charitable Foundation 2717 | -8/Scraptown | Found DCF Scrap (27 items) 2731 | -8/Scraptown | Visited Modified Component R&D 2760 | -8/Scraptown | Found Scrap Suit 2778 | -8/Scraptown | Discovered exit to Factory (range 3) 2877 | -8/Scraptown | Visited Research Penetration Think Tank 2886 | -8/Scraptown | Visited Cartography Club 2928 | -8/Scraptown | Botcube activated 2950 | -8/Scraptown | Botcube completed mutation into legged form, armed with 2 guns. 3007 | -8/Scraptown | Found Surveybot 17 Chip 3017 | -8/Scraptown | Found Deep Structural Scanner 3023 | -8/Scraptown | Learned location of Cetus (-6) 3023 | -8/Scraptown | Learned location of Hub_04(d) (-6) 3023 | -8/Scraptown | Learned location of Testing (-2) 3023 | -8/Scraptown | Learned 12 Materials zone layouts 3023 | -8/Scraptown | Learned 16 Materials zone layouts 3023 | -8/Scraptown | Learned 16 Factory zone layouts 3023 | -8/Scraptown | Learned 4 Recycling zone layouts 3023 | -8/Scraptown | Learned 16 Research zone layouts 3023 | -8/Scraptown | Learned 16 Lower Caves zone layouts 3023 | -8/Scraptown | Learned 20 Lower Caves zone layouts 3023 | -8/Scraptown | Learned 16 Upper Caves zone layouts 3023 | -8/Scraptown | Learned location of 1 exit from Upper Caves 3023 | -8/Scraptown | Learned location of 2 exits from Upper Caves 3046 | -8/Scraptown | Met Optimus 3046 | -8/Scraptown | Accepted into 0bPrime 3061 | -8/Scraptown | Entered Factory 3061 | -6/Factory | Accompanied by 12 allies 3061 | -6/Factory | Evolved 4 slots: Propulsion x1, Utility x3 3062 | -6/Factory | Identified exit to Factory 3062 | -6/Factory | Identified exit to Extension 3063 | -6/Factory | Identified exit to Lower Caves 3065 | -6/Factory | Loaded intel: 108 trap records 3068 | -6/Factory | Loaded intel: 8 recycling unit locations 3100 | -6/Factory | Learned location of Protoforge (-2) 3104 | -6/Factory | Garrison activated, responded to threat 3330 | -6/Factory | Lost 4 allies 3522 | -6/Factory | Build established: Hacker-Sprinter 3529 | -6/Factory | Fabricated Imp. Trap Extractor? 3553 | -6/Factory | Learned Extension emergency access door positions 3679 | -6/Factory | Learned Extension security intel 3703 | -6/Factory | Repaired Lgt. Nuclear Core? 3728 | -6/Factory | Learned location of Proximity Caves (-4) 3767 | -6/Factory | Learned Hub_04(d) trap positions 3798 | -6/Factory | Learned Extension trap positions 3841 | -6/Factory | Learned location of 2 exits from Proximity Caves 3877 | -6/Factory | Central database locked down 3892 | -6/Factory | Learned 8 Factory zone layouts 3930 | -6/Factory | Manually triggered Chute Trap 3930 | -6/Factory | Sucked down chute 3930 | -6/Factory | Entered Waste 3938 | -6/Waste | Found Prototype Processor 3945 | -6/Waste | EMP discharged 3945 | -6/Waste | System corruption reached 10% 3947 | -6/Waste | Spotted C-40 Crusher 3948 | -6/Waste | Spotted C-40 Crusher 3952 | -6/Waste | Crushed by Compactor (1 part destroyed, 1 dropped) 3954 | -6/Waste | Discovered new exit (range 16) 3954 | -6/Waste | Spotted C-40 Crusher 3959 | -6/Waste | Identified exit to Factory 3959 | -6/Waste | Entered Factory 3972 | -6/Factory | Identified Exp. Terrain Scan Processor 3983 | -6/Factory | Lost 7 parts (1p5n1w) 4032 | -6/Factory | Fabricated Imp. Surge Thruster (x2) 4044 | -6/Factory | Loaded intel: 8 recycling unit locations 4109 | -6/Factory | Spotted B-75 Beast 4260 | -6/Factory | Discovered exit to Factory (range 17) 4272 | -6/Factory | Fabricated Imp. Surge Thruster? 4650 | -6/Factory | Discovered exit to Extension (range 6) 4655 | -6/Factory | Entered Extension 4657 | -6/Extension | Loaded intel: 18 trap records 4673 | -6/Extension | Rescued a captive Derelict 4704 | -6/Extension | Rescued a captive Derelict 4725 | -6/Extension | Rescued a captive Derelict 4726 | -6/Extension | Rescued a captive Derelict 4735 | -6/Extension | Rescued A7 4790 | -6/Extension | Attached CPS modules to A7. 4847 | -6/Extension | Spotted B-75 Beast 4894 | -6/Extension | Lost 5 allies 4906 | -6/Extension | Spotted B-75 Beast 4911 | -6/Extension | Allies destroyed B-75 Beast 4929 | -6/Extension | Allies destroyed B-75 Beast 4931 | -6/Extension | Discovered exit to Factory (range 7) 4955 | -6/Extension | Lost 4 allies 4966 | -6/Extension | Discovered new exit (range 16) 5055 | -6/Extension | Identified exit to Cetus 5091 | -6/Extension | Entered Cetus 5091 | -6/Cetus | Accompanied by 7 allies (A7) 5096 | -6/Cetus | Acquired a Cetus Manufacturing Module code from A7 5109 | -6/Cetus | Spotted Cetus Guard 5111 | -6/Cetus | Spotted Cetus Guard 5111 | -6/Cetus | Spotted Cetus Guard 5116 | -6/Cetus | Allies destroyed Cetus Guard 5120 | -6/Cetus | Allies destroyed Cetus Guard 5124 | -6/Cetus | Allies destroyed Cetus Guard 5138 | -6/Cetus | Started Cetus Manufacturing Module 5149 | -6/Cetus | Escorted A7 to Cetus Mainframe 5163 | -6/Cetus | Manufactured an Enhanced Grunt 5188 | -6/Cetus | Manufactured an Enhanced Grunt 5213 | -6/Cetus | Manufactured an Enhanced Grunt 5238 | -6/Cetus | Manufactured an Enhanced Grunt 5263 | -6/Cetus | Manufactured an Enhanced Grunt 5282 | -6/Cetus | Discovered new exit (range 15) 5331 | -6/Cetus | Spotted Cetus Guard 5362 | -6/Cetus | Discovered exit to Factory (range 18) 5370 | -6/Cetus | Met Revision 17 5378 | -6/Cetus | Identified exit to Archives 5423 | -6/Cetus | Entered Archives 5423 | -6/Archives | Accompanied by 8 allies (A7) 5428 | -6/Archives | Received a hacking code to weaken MAIN.C 5447 | -6/Archives | Unable to access archive contents 5474 | -6/Archives | Unable to access archive contents 5475 | -6/Archives | Discovered new exit (range 15) 5489 | -6/Archives | Discovered new exit (range 18) 5494 | -6/Archives | Lost 4 allies 5529 | -6/Archives | Discovered exit to Factory (range 17) 5660 | -6/Archives | Identified exit to Hub_04(d) 5679 | -6/Archives | Entered Hub_04(d) 5679 | -6/Hub_04(d) | Accompanied by 3 allies 5680 | -6/Hub_04(d) | Loaded intel: 23 trap records 5780 | -6/Hub_04(d) | Discovered exit to Factory (range 9) 5855 | -6/Hub_04(d) | Discovered exit to Factory (range 11) 5871 | -6/Hub_04(d) | Network Hub disabled 5874 | -6/Hub_04(d) | Spotted Lightning 5875 | -6/Hub_04(d) | Core integrity fell below 50% 5875 | -6/Hub_04(d) | Spotted Lightning 5875 | -6/Hub_04(d) | Spotted Lightning 5880 | -6/Hub_04(d) | Entered Factory 5880 | -5/Factory | Evolved 2 slots: Power x1, Propulsion x1 5881 | -5/Factory | Identified exit to Upper Caves 5904 | -5/Factory | Loaded intel: 8 recycling unit locations 5910 | -5/Factory | Lost 5 parts (1p2n1u1w) 5954 | -5/Factory | Build established: Hacker-Scout 6011 | -5/Factory | Repaired Imp. Propulsion Shielding 6078 | -5/Factory | Discovered new exit (range 9) 6189 | -5/Factory | Discovered new exit (range 7) 6192 | -5/Factory | Identified exit to Factory 6325 | -5/Factory | Repaired Broken Hyp. Gauss Cannon+? 6348 | -5/Factory | Sucked down chute 6348 | -5/Factory | Entered Waste 6350 | -5/Waste | Spotted C-40 Crusher 6356 | -5/Waste | Spotted C-40 Crusher 6360 | -5/Waste | Warlord forces began an assault 6392 | -5/Waste | Allies destroyed C-40 Crusher 6393 | -5/Waste | Spotted C-40 Crusher 6402 | -5/Waste | Allies destroyed C-40 Crusher 6405 | -5/Waste | Allies destroyed C-40 Crusher 6406 | -5/Waste | Spotted C-40 Crusher 6408 | -5/Waste | Spotted C-40 Crusher 6412 | -5/Waste | Spotted C-40 Crusher 6420 | -5/Waste | Allies destroyed C-40 Crusher 6427 | -5/Waste | Allies destroyed C-40 Crusher 6449 | -5/Waste | Destroyed C-40 Crusher 6464 | -5/Waste | Discovered new exit (range 16) 6477 | -5/Waste | Lost 17 allies 6503 | -5/Waste | Found Prototype Device 6503 | -5/Waste | Identified Exp. Thermal Defense Suite 6534 | -5/Waste | Identified exit to Factory 6534 | -5/Waste | Entered Factory 6561 | -5/Factory | Loaded intel: 8 recycling unit locations 7120 | -5/Factory | Build established: Scientist-Scout 7209 | -5/Factory | Learned Extension emergency access door positions 7267 | -5/Factory | Discovered exit to Factory (range 7) 7274 | -5/Factory | Learned 4 Proximity Caves zone layouts 7302 | -5/Factory | Spotted B-75 Beast 7329 | -5/Factory | Learned 2 Armory zone layouts 7348 | -5/Factory | Fabricated Cld. Nuclear Pulse Thruster? 7372 | -5/Factory | Learned 2 Proximity Caves zone layouts 7373 | -5/Factory | Unchained authorized (CL-0N3) 7384 | -5/Factory | Central database locked down 7403 | -5/Factory | Learned location of 1 exit from Research 7423 | -5/Factory | Learned Extension non-interactive machine intel 7433 | -5/Factory | Learned Research trap positions 7452 | -5/Factory | Learned 4 Research zone layouts 7519 | -5/Factory | Learned Research recycling unit intel 7524 | -5/Factory | Build established: Trapper-Scout 7542 | -5/Factory | Spotted Executioner 7566 | -5/Factory | Learned 4 Research zone layouts 7803 | -5/Factory | Destroyed CL-0N3 7808 | -5/Factory | Found Prototype Device 7808 | -5/Factory | Identified Zeronet Interface 7810 | -5/Factory | Extracted schematics, analyses from CL-0N3's data core 7836 | -5/Factory | Entered Upper Caves 7837 | -5/Upper Caves | Identified exit to Upper Caves 7842 | -5/Upper Caves | Found Alien Artifact 7842 | -5/Upper Caves | Identified Core Expander 7842 | -5/Upper Caves | Installed Core Expander, added new Power slot 7850 | -5/Upper Caves | Learned Factory garrison access intel 7952 | -5/Upper Caves | Encountered a Warlord checkpoint 7993 | -5/Upper Caves | Entered another Upper Caves area 7994 | -5/Upper Caves | Identified exit to Warlord 8003 | -5/Upper Caves | Learned Factory security intel 8008 | -5/Upper Caves | Spotted B-75 Beast 8019 | -5/Upper Caves | Acquired the password to a Derelict Tinkerer's latest research 8103 | -5/Upper Caves | Entered Warlord 8104 | -5/Warlord | Identified exit to Proximity Caves 8111 | -5/Warlord | Build established: Hacker-Scout 8214 | -5/Warlord | Visited the Vortex Lab 8215 | -5/Warlord | Found Prototype Energy Gun 8215 | -5/Warlord | Identified Vortex Shotgun 8236 | -5/Warlord | Warlord's base attacked by MAIN.C 8249 | -5/Warlord | Found Prototype Device 8249 | -5/Warlord | Identified Exp. Cloaking Device 8309 | -5/Warlord | Rebuked by Warlord 8349 | -5/Warlord | Opened side exit 8381 | -5/Warlord | Spotted B-75 Beast 8381 | -5/Warlord | Spotted B-86 Titan 8385 | -5/Warlord | Entered Proximity Caves 8501 | -4/Proximity Caves | Entered Factory 8501 | -4/Factory | Evolved 2 slots: Utility x2 8503 | -4/Factory | Loaded intel: 4 garrison access locations 8544 | -4/Factory | Build established: Hacker-Sprinter 8576 | -4/Factory | Fabricated Adv. Cooling System (x2) 8589 | -4/Factory | Loaded intel: 8 recycling unit locations 8713 | -4/Factory | Discovered new exit (range 4) 8714 | -4/Factory | Identified exit to Research 8852 | -4/Factory | Discovered exit to Research (range 15) 9022 | -4/Factory | Learned Armory stockpile data 9135 | -4/Factory | Unchained authorized (DW-4LL) 9158 | -4/Factory | Learned 8 Quarantine zone layouts 9184 | -4/Factory | Learned 2 Armory zone layouts 9192 | -4/Factory | Discovered new exit (range 12) 9194 | -4/Factory | Identified exit to Upper Caves 9201 | -4/Factory | Learned Testing garrison access intel 9258 | -4/Factory | Entered Upper Caves 9261 | -4/Upper Caves | Learned Research trap positions 9445 | -4/Upper Caves | Unchained authorized (DW-4LL) 9642 | -4/Upper Caves | DW-4LL burst out of a wall 9993 | -4/Upper Caves | Destroyed DW-4LL 10000 | -4/Upper Caves | Found ID Mask 10080 | -4/Upper Caves | Build established: Sprinter 10372 | -4/Upper Caves | Learned location of Armory (-3) 10441 | -4/Upper Caves | Discovered new exit (range 8) 10444 | -4/Upper Caves | Identified exit to Upper Caves 10444 | -4/Upper Caves | Entered another Upper Caves area 10486 | -4/Upper Caves | Spotted B-86 Titan 10531 | -4/Upper Caves | Learned Research terminal intel 10546 | -4/Upper Caves | Discovered new exit (range 11) 10551 | -4/Upper Caves | Identified exit to Zhirov 10551 | -4/Upper Caves | Entered Zhirov 10551 | -4/Zhirov | Discovered new exit (range 3) 10555 | -4/Zhirov | Met Zhirov 10560 | -4/Zhirov | Zhirov requested help retrieving the SGEMP Prototype 10563 | -4/Zhirov | Found Alien Artifact 10563 | -4/Zhirov | Identified Integrated Reactor 10563 | -4/Zhirov | Installed Integrated Reactor, increased core energy generation (+10) 10569 | -4/Zhirov | Found Alien Artifact 10604 | -4/Zhirov | Identified exit to Proximity Caves 10605 | -4/Zhirov | Entered Proximity Caves 10608 | -3/Proximity Caves | Spotter reported a threat 10608 | -3/Proximity Caves | Spotter reported a threat 10654 | -3/Proximity Caves | Entered Research 10654 | -3/Research | Evolved 2 slots: Propulsion x1, Utility x1 10655 | -3/Research | Identified exit to Quarantine 10656 | -3/Research | Identified exit to Research 10657 | -3/Research | Identified exit to Armory 10658 | -3/Research | Loaded intel: 91 trap records 10659 | -3/Research | Loaded intel: 24 terminal locations 10660 | -3/Research | Loaded intel: 5 recycling unit locations 10693 | -3/Research | Found Prototype Processor 10693 | -3/Research | Identified Exp. Target Analyzer 10720 | -3/Research | Loaded intel: 5 recycling unit locations 10745 | -3/Research | Discovered exit to Research (range 4) 10854 | -3/Research | Revision forces began assault on 0b10 10916 | -3/Research | Met up with Revision 17++ 10945 | -3/Research | Central database locked down 10945 | -3/Research | Identified Transdimensional Reconstructor 10954 | -3/Research | Build established: Hacker-Ninja 11066 | -3/Research | Found Prototype Device 11066 | -3/Research | Identified Exp. Thermal Shield 11090 | -3/Research | Spotted B-86 Titan 11191 | -3/Research | Discovered exit to Research (range 22) 11301 | -3/Research | Learned 8 Access zone layouts 11354 | -3/Research | Research terminal network offline 11388 | -3/Research | Found Prototype Processor 11388 | -3/Research | Identified Exp. Signal Interpreter 11390 | -3/Research | Fabricated Imp. Utility Shielding (x2) 11424 | -3/Research | Repaired Imp. Propulsion Shielding 11453 | -3/Research | Entered Quarantine 11455 | -3/Quarantine | Imp. Hacking Suite fried by hacking feedback 11466 | -3/Quarantine | Found Prototype Protection 11466 | -3/Quarantine | Identified Centrium Heavy Armor Plating 11490 | -3/Quarantine | Unchained authorized (6S-H0T) 11655 | -3/Quarantine | Destroyed 6S-H0T 11756 | -3/Quarantine | Build established: Ninja 11934 | -3/Quarantine | Learned 4 Quarantine zone layouts 11960 | -3/Quarantine | Learned 4 Testing zone layouts 11973 | -3/Quarantine | Found Alien Artifact 11973 | -3/Quarantine | Identified Dimensional Node Initializer 11973 | -3/Quarantine | Initialized slip node 11976 | -3/Quarantine | Found Alien Artifact 11976 | -3/Quarantine | Identified Hpw. Transdimensional Reconstructor 11976 | -3/Quarantine | Warped through subspace to slip node 11978 | -3/Quarantine | Learned 4 Access zone layouts 11980 | -3/Quarantine | Found Dimensional Node Initializer 11988 | -3/Quarantine | Learned Research trap positions 11989 | -3/Quarantine | Learned Section 7 security intel 11999 | -3/Quarantine | Learned Testing emergency access door positions 12020 | -3/Quarantine | Learned 4 Access zone layouts 12033 | -3/Quarantine | Found Alien Artifact 12035 | -3/Quarantine | Identified Subatomic Replicator 12035 | -3/Quarantine | Used Subatomic Replicator to create Alien Artifact 12064 | -3/Quarantine | Entered Research 12064 | -2/Research | Evolved 2 slots: Utility x2 12065 | -2/Research | Identified exit to Testing 12066 | -2/Research | Loaded intel: 80 trap records 12098 | -2/Research | Identified Supercharged TR 12107 | -2/Research | Build established: Infiltrator-Ninja 12152 | -2/Research | Spotted B-90 Cyclops 12159 | -2/Research | Spotted B-90 Cyclops 12228 | -2/Research | Loaded intel: 5 recycling unit locations 12321 | -2/Research | Discovered new exit (range 24) 12395 | -2/Research | Discovered new exit (range 19) 12437 | -2/Research | Spotted B-90 Cyclops 12511 | -2/Research | Scraphulk reinforcements arrived 12518 | -2/Research | Garrison activated, responded to threat 12523 | -2/Research | Identified exit to Access 12553 | -2/Research | Spotted B-90 Cyclops 12569 | -2/Research | Entered Testing 12571 | -2/Testing | Identified exit to Section 7 12571 | -2/Testing | Identified exit to Protoforge 12573 | -2/Testing | Loaded intel: 1 garrison access location 12629 | -2/Testing | Found Prototype Device 12629 | -2/Testing | Identified Exp. Hardlight Generator 12682 | -2/Testing | Found Prototype Energy Gun 12682 | -2/Testing | Identified Warp Gun 12705 | -2/Testing | Build established: Scientist-Ninja 12713 | -2/Testing | Rewired PL-G8BY93H92N 12789 | -2/Testing | Found Prototype Launcher 12789 | -2/Testing | Identified Z-bomb Delivery System 12805 | -2/Testing | Spotted Fortress 12822 | -2/Testing | ID Mask engaged 12824 | -2/Testing | Entered Protoforge 12851 | -2/Protoforge | Spotted AP7-3 12851 | -2/Protoforge | Spotted AP7-3 12852 | -2/Protoforge | ID Mask no longer valid 12861 | -2/Protoforge | Spotted Overlord 12862 | -2/Protoforge | Spotted EXE-6 12862 | -2/Protoforge | Spotted EXE-6 12862 | -2/Protoforge | Superfortress began startup sequence 12872 | -2/Protoforge | UFD initiated attack on Protoforge (Readiness: Maximal) 12872 | -2/Protoforge | Loaded intel: 3 recycling unit locations 12892 | -2/Protoforge | Lost 4 parts (2p2u) 12926 | -2/Protoforge | Optimus greeted in Protoforge 12929 | -2/Protoforge | Found Prototype Device 12929 | -2/Protoforge | Identified Exp. Kinecellerator 12931 | -2/Protoforge | Found Prototype Processor 12931 | -2/Protoforge | Identified Exp. Armor Integrity Analyzer 12933 | -2/Protoforge | Found Prototype Processor 12933 | -2/Protoforge | Identified Exp. Core Analyzer 12940 | -2/Protoforge | Found Prototype Ballistic Gun 12940 | -2/Protoforge | Identified Cep. XC Strikerail 12953 | -2/Protoforge | Spotted SKR-2 12954 | -2/Protoforge | Spotted SKR-2 12954 | -2/Protoforge | Spotted SKR-2 12974 | -2/Protoforge | Found Prototype Processor 12974 | -2/Protoforge | Identified Exp. Melee Analysis Suite 12976 | -2/Protoforge | Spotted EXE-6 12982 | -2/Protoforge | Spotted EXE-6 12997 | -2/Protoforge | Forge Plexus network access discovered 13007 | -2/Protoforge | Lost 6 allies 13041 | -2/Protoforge | Initialized slip node 13061 | -2/Protoforge | Warped through subspace to slip node 13069 | -2/Protoforge | P-80 Master assimilated allied 02F13-D 13082 | -2/Protoforge | P-80 Master assimilated allied 02F07-K 13082 | -2/Protoforge | Spotted 02F07-K 13084 | -2/Protoforge | Spotted Hotshot 13092 | -2/Protoforge | Spotted Hotshot 13098 | -2/Protoforge | Found Prototype Device 13098 | -2/Protoforge | Identified Cep. Antimissile System 13107 | -2/Protoforge | Found Cep. Zero-point Core 13109 | -2/Protoforge | Found Cep. NT7 Matterbank 13116 | -2/Protoforge | Found Cep. Zero-point Core 13122 | -2/Protoforge | Found Cep. Matter Streamer 13123 | -2/Protoforge | Lost 4 allies 13209 | -2/Protoforge | Fabricated Quantum Shading Machine (x1) 13212 | -2/Protoforge | Spotted Striker 13214 | -2/Protoforge | Spotted Striker 13251 | -2/Protoforge | Found Cep. Weapon Articulator 13258 | -2/Protoforge | Spotted Executioner 13273 | -2/Protoforge | Build established: Scavenger-Sprinter 13296 | -2/Protoforge | Lost 4 allies 13310 | -2/Protoforge | Found Exp. ECM Suite 13313 | -2/Protoforge | Found Prototype Energy Gun 13313 | -2/Protoforge | Identified Enh. Gamma Rifle 13317 | -2/Protoforge | Found Cep. XC Strikerail 13319 | -2/Protoforge | Found Prototype Device 13319 | -2/Protoforge | Identified Adv. Kinecellerator 13364 | -2/Protoforge | Spotted Hotshot 13369 | -2/Protoforge | Spotted Hotshot 13376 | -2/Protoforge | Spotted Striker 13376 | -2/Protoforge | Spotted Executioner 13425 | -2/Protoforge | Spotted Executioner 13547 | -2/Protoforge | Spotted B-90 Cyclops 13593 | -2/Protoforge | Spotted Executioner 13593 | -2/Protoforge | Spotted Striker 13593 | -2/Protoforge | Spotted Executioner 13599 | -2/Protoforge | Spotted Striker 13626 | -2/Protoforge | Spotted Executioner 13626 | -2/Protoforge | Spotted Executioner 13660 | -2/Protoforge | Spotted Striker 13664 | -2/Protoforge | Found Exp. Core Analyzer 13713 | -2/Protoforge | Lost 3 allies 13723 | -2/Protoforge | Learned location of 3 exits from Research 13732 | -2/Protoforge | UFD reported confirmed Drillbomb installation 13832 | -2/Protoforge | Lost 6 allies 13845 | -2/Protoforge | Learned Research trap positions 13846 | -2/Protoforge | Spotted Striker 13855 | -2/Protoforge | UFD reported confirmed Drillbomb installation 13865 | -2/Protoforge | Spotted Hotshot 13869 | -2/Protoforge | Spotted Hotshot 13879 | -2/Protoforge | Destroyed Hotshot 13892 | -2/Protoforge | Learned Research garrison access intel 13913 | -2/Protoforge | Destroyed Hotshot 13921 | -2/Protoforge | Build established: Scavenger-Ninja 13931 | -2/Protoforge | Learned 8 Access zone layouts 13999 | -2/Protoforge | Learned 8 Access zone layouts 14111 | -2/Protoforge | Learned Research scanalyzer intel 14162 | -2/Protoforge | Spotted V512-r 14162 | -2/Protoforge | Spotted V448-n 14162 | -2/Protoforge | Spotted V796-e 14170 | -2/Protoforge | Spotted Immortal 14243 | -2/Protoforge | Destroyed Immortal 14248 | -2/Protoforge | Spotted Decapitator 14248 | -2/Protoforge | Spotted Decapitator 14248 | -2/Protoforge | Spotted Decapitator 14248 | -2/Protoforge | Spotted Decapitator 14269 | -2/Protoforge | Found Cep. Plasma Driver 14281 | -2/Protoforge | Found Crosscalibrator 14304 | -2/Protoforge | Spotted V819-k 14304 | -2/Protoforge | Spotted V703-n 14341 | -2/Protoforge | Found Cep. Antigrav Storage Unit 14343 | -2/Protoforge | Found Cep. NT7 Matterbank 14409 | -2/Protoforge | Spotted Decapitator 14409 | -2/Protoforge | Spotted Decapitator 14415 | -2/Protoforge | Spotted V667-f 14415 | -2/Protoforge | Spotted V300-d 14416 | -2/Protoforge | Spotted Immortal 14417 | -2/Protoforge | Spotted Immortal 14544 | -2/Protoforge | Build established: Scavenger-Scout 14611 | -2/Protoforge | Additional patrols dispatched to research labs 14614 | -2/Protoforge | Found Transdimensional Reconstructor 14619 | -2/Protoforge | Found Cep. Nanofilaments [Conductive] 14619 | -2/Protoforge | Installed Cep. Nanofilaments [Conductive], 2 resistances modified: TH -15%, EM +25% 14639 | -2/Protoforge | Spotted AP7-3 14639 | -2/Protoforge | Spotted AP7-3 14642 | -2/Protoforge | Found Cep. Fieldthrust Drive 14947 | -2/Protoforge | Destroyed AP7-3 15094 | -2/Protoforge | Destroyed AP7-3 15141 | -2/Protoforge | Build established: Scavenger-Sprinter 15199 | -2/Protoforge | Found Cep. Plasma Driver 15200 | -2/Protoforge | Found Faulty Cep. Helical Railcannon 15201 | -2/Protoforge | Found Faulty Cep. Helical Railcannon 15203 | -2/Protoforge | Found Faulty Exp. Jetlance 15205 | -2/Protoforge | Found Faulty Exp. Jetlance 15207 | -2/Protoforge | Found Faulty Cep. XC Strikerail 15208 | -2/Protoforge | Found Faulty Cep. Plasma Driver 15213 | -2/Protoforge | Found Faulty Cep. XC Strikerail 15319 | -2/Protoforge | Spotted V260-x 15325 | -2/Protoforge | UFD reported confirmed Drillbomb installation 15336 | -2/Protoforge | Found Mni. Quantum Capacitor 15338 | -2/Protoforge | Found Faulty Cep. Hypertargeting System 15340 | -2/Protoforge | Found Faulty Cep. Hypertargeting System 15353 | -2/Protoforge | Spotted Decapitator 15353 | -2/Protoforge | Spotted Decapitator 15353 | -2/Protoforge | Spotted V595-w 15353 | -2/Protoforge | Spotted V438-v 15353 | -2/Protoforge | Spotted Decapitator 15407 | -2/Protoforge | Spotted V772-l 15408 | -2/Protoforge | Found Exp. Active Sensor Suite 15493 | -2/Protoforge | Found Cep. Cloak Mesh 15495 | -2/Protoforge | Found Cep. Cloak Mesh 15497 | -2/Protoforge | Found Faulty Cep. Impact Drone Bay 15499 | -2/Protoforge | Found Faulty Cep. Impact Drone Bay 15604 | -2/Protoforge | Found Cep. Thermoelectric Network 15654 | -2/Protoforge | Destroyed Decapitator 15667 | -2/Protoforge | Destroyed Decapitator 15767 | -2/Protoforge | Found Cep. Phase Shift Module 15768 | -2/Protoforge | Found Faulty Cep. RG22 Armor 15775 | -2/Protoforge | Found Cep. Phase Shift Module 15776 | -2/Protoforge | Found Cep. RG22 Armor 15778 | -2/Protoforge | Found Cep. Projectile Intercept Suite 15782 | -2/Protoforge | Found Faulty Cep. Energy Mantle 15783 | -2/Protoforge | Found Cep. Energy Mantle 15814 | -2/Protoforge | Found Faulty Cep. Zero-point Core 15819 | -2/Protoforge | Found Faulty Cep. Zero-point Core 15834 | -2/Protoforge | Found Cep. Gyrokinetic System 15988 | -2/Protoforge | Spotted V602-n 16046 | -2/Protoforge | Destroyed V819-k 16055 | -2/Protoforge | Destroyed V703-n 16068 | -2/Protoforge | Found Exp. Core Analyzer 16079 | -2/Protoforge | Destroyed V602-n 16156 | -2/Protoforge | Build established: Scavenger-Ninja 16172 | -2/Protoforge | Spotted Executioner 16173 | -2/Protoforge | Spotted Executioner 16382 | -2/Protoforge | Spotted Executioner 16443 | -2/Protoforge | Spotted Executioner 16443 | -2/Protoforge | Entered Access 16443 | -1/Access | Evolved 2 slots: Utility x2 16444 | -1/Access | Identified exit to Surface 16444 | -1/Access | Identified exit to Command 16545 | -1/Access | Spotted B-99 Colossus 16624 | -1/Access | Unchained authorized (QV-33N) 16693 | -1/Access | First assault squad dispatched 16710 | -1/Access | Entered Command 16871 | -1/Command | Spotted Combat Programmer 16872 | -1/Command | Spotted Combat Programmer 16880 | -1/Command | Destroyed Combat Programmer 16881 | -1/Command | Destroyed Combat Programmer 16886 | -1/Command | Spotted M Guard 16886 | -1/Command | Spotted M Guard 16897 | -1/Command | Destroyed M Guard 16907 | -1/Command | Destroyed M Guard 16907 | -1/Command | All MAIN.C guards destroyed 16925 | -1/Command | Met MAIN.C 16953 | -1/Command | Destroyed MAIN.C Shell 16954 | -1/Command | MAIN.C activated Command garrisons 16961 | -1/Command | 0b10 Conduit disabled 16991 | -1/Command | Destroyed MAIN.C 16994 | -1/Command | Discovered exit to Surface (range 45) 16994 | -1/Command | Discovered exit to Surface (range 103) 16994 | -1/Command | Extracted map data and part IDs from MAIN.C's data core 17022 | -1/Command | Lost 4 allies 17039 | -1/Command | Found Exp. System Purifier 17042 | -1/Command | Found Zero-point Reactor 17250 | -1/Command | Build established: Scavenger-Scout 18289 | -1/Command | Warped through subspace to slip node 18289 | -1/Command | Discovered new exit (range 4) 18292 | -1/Command | Identified exit to Access_0 18293 | -1/Command | Entered Access_0 18295 | -1/Access_0 | Met Architect 18313 | -1/Access_0 | Destroyed A8 18317 | -1/Access_0 | Architect warped through subspace 18357 | -1/Access_0 | Build established: Trapper-Scout 18360 | -1/Access_0 | Architect warped through subspace 18382 | -1/Access_0 | Found Integrity Redistributor 18408 | -1/Access_0 | Subspace Access Node disabled 18410 | -1/Access_0 | Architect warped through subspace 18435 | -1/Access_0 | Subspace Access Node disabled 18442 | -1/Access_0 | A6 warped into view 18470 | -1/Access_0 | Destroyed A6 18481 | -1/Access_0 | Architect warped through subspace 18506 | -1/Access_0 | A5 warped into view 18530 | -1/Access_0 | Architect warped through subspace 18542 | -1/Access_0 | Destroyed A5 18548 | -1/Access_0 | Found Med. Regenerative Plating 18592 | -1/Access_0 | Architect warped through subspace 18637 | -1/Access_0 | Architect warped through subspace 18671 | -1/Access_0 | Architect warped through subspace 18728 | -1/Access_0 | Subspace Access Node disabled 18739 | -1/Access_0 | Architect warped through subspace 18748 | -1/Access_0 | A4 warped into view 18766 | -1/Access_0 | Architect warped through subspace 18781 | -1/Access_0 | Architect warped through subspace 18825 | -1/Access_0 | Architect warped through subspace 18839 | -1/Access_0 | Found Integrated Reactor 18839 | -1/Access_0 | Installed Integrated Reactor, increased core energy generation (+10) 18863 | -1/Access_0 | Subspace Access Node disabled 18906 | -1/Access_0 | Destroyed A4 19006 | -1/Access_0 | Core integrity fell below 50% 19034 | -1/Access_0 | Lost 3 parts (2u1w) 19092 | -1/Access_0 | A3 warped into view 19135 | -1/Access_0 | Found Prototype Ballistic Gun 19159 | -1/Access_0 | Core integrity fell below 20% 19166 | -1/Access_0 | Found Hpw. Transdimensional Reconstructor 19178 | -1/Access_0 | Lost 4 parts (1p2n1u) 19188 | -1/Access_0 | Build established: Scavenger-Ninja 19189 | -1/Access_0 | Allies destroyed A2 19198 | -1/Access_0 | Singularity Gate disabled 19209 | -1/Access_0 | Singularity Gate disabled 19289 | -1/Access_0 | Destroyed Architect 19292 | -1/Access_0 | Extracted unknown sensor trigger ID from Architect's data core 19299 | -1/Access_0 | Identified A3's Sniper Rifle 19416 | -1/Access_0 | Found Hpw. Transdimensional Reconstructor 19478 | -1/Access_0 | Destroyed A3 19503 | -1/Access_0 | Extracted Singularity Gate Test 138-C access codes from A2's data core 19644 | -1/Access_0 | Found Sigix Corpse 19710 | -1/Access_0 | Found Prototype Device 19710 | -1/Access_0 | Identified Desublimator 20019 | -1/Access_0 | Build established: Scavenger-Scout 20300 | -1/Access_0 | Warped through subspace to slip node 20300 | -1/Access_0 | Discovered exit to Surface (range 8) 20302 | -1/Access_0 | Used Integrity Redistributor, redistributed integrity to core (+164) 20306 | *** | Establishing 0b11! Last Messages --------------- 20054_ Destroyed Adv. Heat Sink. 20055_ Plasma Slug penetrates Enhanced Grunt. 20059_ Enhanced Grunt destroyed. 20076_ System corrupted: Matter fused (-7). 20088_ Acquired Stealth Drone Bay. 20090_ Stealth Drone released from Stealth Drone Bay. 20116_ Acquired Exp. Gyrokinetic Inverter. 20146_ Acquired 17 matter. 20206_ System corrupted: Component data lost. 20284_ Stealth Drone retrieved by Stealth Drone Bay (no repairs). 20293_ Dropped Stealth Drone Bay. 20294_ >> Lost connection to Stealth Drone. 20299_ Acquired Quantum Shading Machine. 20300_ Warped through subspace, drawn to slip node. 20300_ EXIT=FOUND: SURFACE 20302_ Integrity redistributed to core (+164). Map ----- +----------------------------------------------------+ | | | | | | | | | | | | | | | | | | | | | | | | | | | | | | | | | ?????????????????????????????????????????????????? | | ?????????????????????????????????????????????????? | | ?????????????????????????????????????????????????? | | ?????????????????????????????????????????????????? | | ?????????????????????????????????????????????????? | | ?????????????????????????????????????????????????? | | ????????????????????????###??????????????????????? | | ???????????????????????## ##?????????????????????? | | ???????????????????????# #?????????????????????? | | ???????????????????????# @ #?????????????????????? | | ??????????????????????## #?????????????????????? | | ??????????????????????# #?????????????????????? | | ??????????????????????# ##?????????????????????? | | ??????????????????????## #?????????????????????? | | ??????????????????????# #?????????????????????? | | ??????????????????????# ##?????????????????????? | | ??????????????????????# < #?????????????????????? | | ??????????????????????# ##?????????????????????? | | ??????????????????????## #??????????????????????? | | ???????????????????????####??????????????????????? | | ?????????????????????????????????????????????????? | | ?????????????????????????????????????????????????? | | ?????????????????????????????????????????????????? | | ?????????????????????????????????????????????????? | | ?????????????????????????????????????????????????? | | ?????????????????????????????????????????????????? | | ?????????????????????????????????????????????????? | | ?????????????????????????????????????????????????? | | ?????????????????????????????????????????????????? | | ?????????????????????????????????????????????????? | | ?????????????????????????????????????????????????? | | ?????????????????????????????????????????????????? | | ?????????????????????????????????????????????????? | | ?????????????????????????????????????????????????? | +----------------------------------------------------+ Best States ------------- Heat Dissipation 124 Energy Generation 93 Energy Capacity 1640 Matter Stores 300 Matter Capacity 300 Sight Range 23 Robot Scan Range 20 Terrain Scan Range 24 Terrain Scan Density 1210 ECM Strength 3 Cloak Strength 9 Additional Mass Support 20 Base Temperature (-) 200 Corruption Block 17 Armor Coverage 525 Resistance: EM 25 Core Shielding 40 Propulsion Shielding 90 Utility Shielding 90 Point Defense Rating 480 Phase Shifting 25 Evasion (%) 97 Targeting Accuracy 30 Core Analysis 8 Kinecelleration 66 Offensive Hacking 26 Defensive Hacking 30 Authchip Count 2 Trap Extractor Capacity 8 Item Schematics ----------------- VTOL Module | -8/Materials | Scanalyzed Xenon Bombardment Thruster | -8/Materials | Scanalyzed Mni. Grenade Launcher | -8/Materials | Scanalyzed Lgt. Ion Engine | -8/Materials | Scanalyzed Flight Unit | -8/Materials | Scanalyzed Lgt. Assault Rifle | -8/Materials | Scanalyzed Chainsword | -8/Materials | Scanalyzed Flail | -8/Materials | Scanalyzed Imp. Datajack | -8/Materials | Scanalyzed Plasma Cutter | -8/Materials | Scanalyzed Imp. Cooling System | -8/Recycling | Hacked Spear | -8/Recycling | Hacked Surge Thruster | -8/Recycling | Hacked Imp. Surge Thruster | -6/Factory | Hacked Imp. Trap Extractor | -6/Factory | Hacked System Restoration Module | -6/Factory | Scanalyzed Stasis Canceller | -6/Factory | Scanalyzed Cld. Nuclear Pulse Thruster | -5/Factory | Scanalyzed Adv. Hacking Suite | -5/Factory | Hacked Adv. System Restoration Module | -5/Factory | Scanalyzed Imp. Propulsion Shielding | -5/Factory | Scanalyzed Adv. ECM Suite | -5/Factory | Scanalyzed Hyp. Gauss Cannon | -5/Factory | Scanalyzed Imp. Hacking Suite | -5/Factory | Scanalyzed Mic. Antimatter Reactor | -5/Factory | Hacked Lrn. Sensor Array | -5/Factory | Hacked Adv. Cooling System | -5/Factory | Hacked Adv. Power Amplifier | -5/Factory | Hacked Gui. EMP Blaster | -5/Factory | Scanalyzed Assault Drone Bay | -4/Zhirov | Free Exp. Heat Sink | -4/Zhirov | Free Exp. Optical Array | -4/Zhirov | Free Imp. Arc Thrower | -4/Zhirov | Free Fusion Compressor | -3/Research | Scanalyzed Field Propulsion Array | -3/Research | Extracted Drone Bay | -3/Research | Extracted Cloaking Device | -3/Research | Extracted Imp. Utility Shielding | -3/Research | Extracted ECM Suite | -3/Research | Extracted Mni. Drone Bay | -3/Research | Extracted Lrg. Storage Unit | -3/Research | Extracted Adv. Transmission Jammer | -3/Research | Extracted Imp. Matter Neutralizer | -3/Research | Extracted Med. Storage Unit | -3/Research | Extracted Com. Mass Driver | -3/Research | Extracted Imp. Fusion Compressor | -3/Research | Scanalyzed Exp. Power Amplifier | -3/Research | Scanalyzed Imp. Point Defense System | -3/Research | Extracted Imp. System Shield | -3/Research | Extracted Disruptor Cannon | -3/Research | Extracted Imp. Heavy Armor Plating | -3/Research | Extracted Imp. Thermal Shield | -3/Research | Extracted Enh. Hardcell Cannon | -3/Research | Hacked Hvy. Flail | -3/Research | Extracted Cld. Antimatter Reactor | -3/Quarantine | Archive Imp. Diametric Drive | -3/Quarantine | Archive Quantum Shading Machine | -3/Quarantine | Archive Hds. Centrium Wheel | -3/Quarantine | Archive Hvy. Gatling Laser | -3/Quarantine | Archive Stealth Drone Bay | -3/Quarantine | Archive Kinetic Spear | -3/Quarantine | Archive Exp. Matter Compressor | -3/Quarantine | Archive Hvy. Hardcell Cannon | -3/Quarantine | Archive Graphene Brace | -3/Quarantine | Scanalyzed Com. Particle Reactor | -3/Quarantine | Archive Adv. Gravity Neutralizer | -3/Quarantine | Archive Ionic Axe | -3/Quarantine | Archive Imp. Matter Compressor | -3/Quarantine | Archive Exp. Thermal Defense Suite | -3/Quarantine | Archive Com. Tesla Bomb Launcher | -3/Quarantine | Archive Gravity Neutralizer | -3/Quarantine | Archive Cld. Impulse Thruster | -3/Quarantine | Archive Hvy. Tesla Rifle | -3/Quarantine | Archive Adv. Variable Charge Gun | -3/Quarantine | Archive Lrn. Phase Cannon | -2/Testing | Archive Adv. Matter Compressor | -2/Testing | Archive Exp. ECM Suite | -2/Testing | Archive Exp. Transmission Jammer | -2/Testing | Archive Exp. Signal Interpreter | -2/Testing | Archive Adv. Energy Well | -2/Protoforge | Archive Imp. Lightning Gun | -2/Protoforge | Archive Hvy. Neutron Cannon | -2/Protoforge | Archive Imp. Q-thruster | -2/Protoforge | Hacked Graviton Cannon | -2/Protoforge | Archive Adv. Thermal Defense Suite | -2/Protoforge | Archive Adv. Remote Shield | -2/Protoforge | Archive Prc. Energy Filter | -2/Protoforge | Archive Exp. Biometal Medium Treads | -2/Protoforge | Archive Spectral Analyzer | -2/Protoforge | Archive Robot Schematics ------------------ E-15 Imp | -5/Factory | Hacked K-01 Serf | -5/Factory | Archive T-07 Excavator | -5/Factory | Archive A-02 Transporter | -5/Factory | Archive A-15 Conveyor | -5/Factory | Archive R-06 Scavenger | -5/Factory | Archive R-10 Processor | -5/Factory | Archive M-14 Sweeper | -5/Factory | Archive M-22 Extractor | -5/Factory | Archive M-30 Cleanser | -5/Factory | Archive M-13 Machinist | -5/Factory | Archive M-28 Smith | -5/Factory | Archive M-36 Artificer | -5/Factory | Archive O-16 Technician | -5/Factory | Archive O-24 Administrator | -5/Factory | Archive O-32 Director | -5/Factory | Archive W-16 Scout | -5/Factory | Archive W-25 Informer | -5/Factory | Archive W-44 Eye | -5/Factory | Archive S-10 Pest | -5/Factory | Archive S-27 Virus | -5/Factory | Archive S-43 Plague | -5/Factory | Archive G-34 Mercenary | -5/Factory | Archive G-47 Trooper | -5/Factory | Archive G-50 Soldier | -5/Factory | Archive G-67 Veteran | -5/Factory | Archive G-73 Enforcer | -5/Factory | Archive B-36 Bruiser | -5/Factory | Archive B-48 Gladiator | -5/Factory | Archive B-60 Warrior | -5/Factory | Archive B-74 Champion | -5/Factory | Archive L-31 Rogue | -5/Factory | Archive L-41 Fighter | -5/Factory | Archive L-61 Swordsman | -5/Factory | Archive Y-45 Defender | -5/Factory | Archive Y-54 Guardian | -5/Factory | Archive Y-64 Sentinel | -5/Factory | Archive Y-72 Warden | -5/Factory | Archive D-53 Grenadier | -5/Factory | Archive D-63 Destroyer | -5/Factory | Archive D-83 Annihilator | -5/Factory | Archive X-57 Shotgunner | -5/Factory | Archive X-62 Marksman | -5/Factory | Archive X-67 Chaingunner | -5/Factory | Archive X-72 Disruptor | -5/Factory | Archive X-77 Beamer | -5/Factory | Archive X-82 Rainmaker | -5/Factory | Archive X-87 Electro | -5/Factory | Archive H-55 Commando | -5/Factory | Archive H-66 Slayer | -5/Factory | Archive H-77 Assassin | -5/Factory | Archive H-88 Terminator | -5/Factory | Archive P-60 Hacker | -5/Factory | Archive P-70 Sage | -5/Factory | Archive P-80 Master | -5/Factory | Archive C-55 Analyst | -2/Protoforge | Archive Fabricated ------------ Imp. Trap Extractor | x2 | -6/Factory | Authchip Imp. Surge Thruster | x2 | -6/Factory Imp. Surge Thruster | x2 | -6/Factory | Authchip Cld. Nuclear Pulse Thruster | x1 | -5/Factory | Authchip Adv. Cooling System | x2 | -4/Factory Imp. Utility Shielding | x2 | -3/Research Quantum Shading Machine | x1 | -2/Protoforge | Authchip Repaired ---------- Lgt. Nuclear Core | 8% | -6/Factory Imp. Propulsion Shielding | 1% | -5/Factory Hyp. Gauss Cannon | 99% | -5/Factory | Broken Imp. Propulsion Shielding | 10% | -3/Research Studied --------- Flight Unit | -9/Materials | Hacked Lgt. Ion Engine | -9/Materials | Hacked VTOL Module | -8/Materials | Hacked Imp. Surge Thruster | -6/Factory | Hacked Lgt. Deuterium Engine | -6/Factory | Hacked Imp. Datajack | -6/Factory | Hacked Chainsword | -6/Factory | Hacked Nuclear Pulse Thruster | -5/Factory | Hacked Hyp. Gauss Cannon | -5/Factory | Hacked Field Propulsion Drive | -5/Factory | Hacked Impulse Thruster Array | -3/Research | Hacked Lgt. Antimatter Reactor | -3/Quarantine | Hacked Adv. Datajack | -2/Research | Hacked Q-thruster | -2/Research | Hacked Impulse Thruster | -2/Research | Hacked Power Sword | -2/Research | Hacked Imp. Fusion Compressor | -2/Research | Hacked Adv. Plasma Cannon | -2/Testing | Hacked Alien Tech Used ----------------- Core Expander Integrated Reactor Dimensional Node Initializer High-powered Transdimensional Reconstructor Subatomic Replicator Supercharged TR Concept Nanofilaments [Conductive] Transdimensional Reconstructor Integrity Redistributor Achievements -------------- Power Plant Challenges ------------ None Game ------ Seed CorruptionFortressDriver Manual? 0 Play Time 10:32:42 Cumulative 718.1 hours Start 2025.11.27 @ 12:39:38 End 2025.11.28 @ 15:52:16 Sessions 5 Manual Loads 0 Difficulty Rogue Special Mode None Game No. 305 Rogue 305 Adventurer 0 Explorer 0 Win Type 1 Total 73 Types 38/5/11/5/6/1/1/3/0/3 Lore% 97 Gallery% 90 Achievement% 81 Wizard Run 0 Options --------- Layout 1 ASCII 0 Keyboard 0 Movement Numpad Keybinds 0 Fullscreen 1 Font 24/Smallcaps Map View 50x35 Zoom Use 0% Tactical HUD 1 Map Filters NONE Filters NONE Steam 1 RUN: c8dd3c85-c3ab-484f-a3e4-3baa2849a82e